{"text_format":"1","workbook":"xlsx","n_sheets":17,"sheets":["Data Input","Subscrptn Split","Asset Adj","Implicit Rate info","How to Enable Macros","Example - PV Calc","SBITA 1 - PV Calc","SBITA 2 - PV Calc","SBITA 3 - PV Calc","SBITA 4 - PV Calc","SBITA 5 - PV Calc","SBITA 6 - PV Calc","SBITA 7 - PV Calc","SBITA 8 - PV Calc","SBITA 9 - PV Calc","SBITA 10 - PV Calc","Drop Down List"],"not_rendered":{"charts":0,"images":2,"macros":1,"external_links":1,"defined_names":40,"comments":0,"pivot_tables":0},"unopened":[],"bounds":{"document_bytes":16777216,"sheet_cells":100000,"rows_first":2000,"rows_last":500,"rows_between":2000,"halvings":0,"cell_chars":16384,"cell_head_chars":4096},"cells_cut":0,"cells_raw":0,"read":"whole","date_system":"1900"}

{"sheet":"Data Input","index":0,"n_rows":160,"n_cols":12,"rows_kept":160,"cut":false,"hidden":false,"merged":[[0,0,0,1]]}
["STATE OF ARIZONA\nCLOSING PACKAGE\nO - GASB 96 SBITAs - Form 80a\nCollection Form for FY2024 SBITAs\n(Subscription-Based Information Technology Arrangements)"]
[" ----- Due Date 8/23/2024 -----"]
["This FILLABLE form is designed to capture your agency's GASB 96 SBITA information."]
[]
["Reporting background:   "]
["Please complete this form for every SBITA contract that qualifies as a GASB 96 SBITA AND has a start date during FY2024 (July 1, 2023 - June 30, 2024).\nFor example:\n   - Meets scope requirements and is not listed as specifically EXCLUDED,\n   - Total SBITA payments + capitalizable implementation costs are greater than the Materiality Threshold of $5,000,000, and\n   - Has a Maximum Possible Subscription Term of more than 12 months.\nYou should have completed the \"SBITA Decision Form\" first to verify qualifications (Closing Package Section O - link at right):","Closing Package Section O:  Form 80 - SBITA Decision Form"]
[]
["STEPS:"]
["1.  Collect the SBITA Contracts and other information for all qualifying SBITAs identified on Decision Form and use that information to fill out this Collection Form."]
["2.  Save a copy of this Collection Form and rename with your Agency's 3 letter ID (for example, \"ADA FY2024 SBITA Collection Form\")."]
["3.  Complete the following sections by entering in the applicable information for each subscription within a separate column (starting with column C).  There are 10 columns provided.  If you have more than 10 SBITAs, duplicate the form & label as needed (1 of 2, 2 of 2, or 1 of 3, 2 of 3, 3 of 3, etc)."]
["4.  Maintain all documentation and supporting workpapers to support your conclusion for audit purposes in a permanent file (i.e. SBITA Contracts, Decision Form, and this SBITA Collection Form)."]
["6.  Return a copy of this SBITA Collection Form along with the related SBITA contracts and pricing spreadsheets (if separate) to the ACFR e-mail address at right by the Due Date listed above.","ACFR@azdoa.gov "]
[]
["Note 1 - The Teal highlighted cells are for manual or drop-down input. The Orange highlighted cells contain formulas and will automatically fill. Please do not change the Orange cells."]
["Note 2 - Do not insert new columns or rows.  As noted above, if you have more than 10 SBITAs, duplicate the form instead of inserting new columns."]
["Note 3 - Several sections below mention the criteria, 'Reasonably Certain'. To be reasonably certain means that there is a greater than probable chance an event will take place."]
[]
["The Decision Form includes an overview of GASB 96.  The full text of GASB Statement 96 can be found here:","GASB 96 - SBITAs"]
[]
["For additional questions on any of the above steps (including filling out this form), please contact:","ACFR@azdoa.gov "]
[]
["I.  Agency Information"]
["(Only need to fill out this section once for entire worksheet)"]
["Agency three letter ID used in AZ360 (Example: Arizona Department of Administration = ADA):"]
["Preparer Name:"]
["Preparer E-mail:"]
["Preparer Phone:"]
["Date Completed:"]
["Approved by:"]
[]
["How many qualifying GASB 96 SBITAs were identified on the SBITA Decision Form?\nIf more than 10, the agency will need to fill out multiple forms (label them 1 of 2, 2 of 2,  or 1 of 3, 2 of 3, 3 of 3, etc)"]
[]
["II.  General Information","Example (complex)","SBITA # 1","SBITA # 2","SBITA # 3","SBITA # 4","SBITA # 5","SBITA # 6","SBITA # 7","SBITA # 8","SBITA # 9","SBITA # 10"]
["1a.  Contract # if specific to this SBITA (If the contract is a Statewide Contract used for multiple SBITAs, please create your own rational numbering system, i.e. agency code, 2 digit FY and a 2 digit #)","ADA2401"]
[]
["1b.  If using a Statewide Contract used for multiple SBITAs, please provide the Statewide Contract # here (N/A if not applicable)","CTR124578"]
[]
["2.  Name of the SBITA Vendor (Vendor where payments are sent)","A+ Software & Hosting, Inc"]
[]
["3.  Name &/or Short Description of Software Subscription or Other IT-related Arrangement"]
["Please provide name of software and/or a short description of any other related cloud infrastructure access (i.e. vendor server, cloud-based computing such as SaaS, PaaS or IaaS, etc)","A+ Hosting"]
[]
["4.  Is this SBITA a NEW SBITA (entered into between 7/1/2023 - 6/30/2024) or an Existing SBITA which previously did not meet the reporting threshold but now qualifies due to a Significant Modification?","Existing w/Significant Modification"]
[]
["5.  Is the entire Subscription Payment paid from One Source of funding or Divided between Funds or Agencies?","Divided - Fill out Subscrptn Split Tab"]
["If the payment is divided, then please switch to the \"Subscrptn Split\" Tab to fill out the payment split info (click on hyperlink to the right for correct corresponding SBITA # column).","Example - Subscrptn Split","SBITA # 1 - Subscrptn Split","SBITA # 2 - Subscrptn Split","SBITA # 3 - Subscrptn Split","SBITA # 4 - Subscrptn Split","SBITA # 5 - Subscrptn Split","SBITA # 6 - Subscrptn Split","SBITA # 7 - Subscrptn Split","SBITA # 8 - Subscrptn Split","SBITA # 9 - Subscrptn Split","SBITA # 10 - Subscrptn Split"]
["If the funding is all from One Source, please provide the following Chart of Accounts (COA) Elements below.  REQUIRED elements are starred (*). Use any other COA indicated below that will help identify the payments made for each SBITA."]
["Agency *","see Subscription Split Tab"]
["Fund *"]
["Object *"]
["Appropriation"]
["Unit"]
["Task"]
["Sub Task"]
["Program"]
["Phase"]
["Program Period"]
["Dept Object"]
[]
["III.  Asset Information"]
["6.  Identify Asset type (Software or Other IT Arrangement)"]
["All SBITAs will be capitalized as a \"SBITA\", but useful life calculations require a little deeper classification.\n   - A subscription for \"Software\" could be identified in a contract as \"Software\" or as a \"SaaS\" (Software as a Service)\n       - Software useful life is based on cost more than (>) or less than (<) $10 million.  Review instructions on Asset Adj & PV Calc\n          tabs to determine if the cost is over or under $10 million.\n   - A subscription for an \"Other IT Arrangement\" could include Hosting, Data Usage, or other activities identified in a contract (i.e.\n     PaaS (Platform as a Service) or IaaS (Infrastructure as a Service) arrangements).\n       - Other IT Arrangements do not have a defined useful life and will therefore use the SBITA Term for useful life.","Other IT Arrangement"]
[]
["Useful life"]
["7.  Useful life per Capital Asset conventions for the State (will automatically fill)",{"$f":"VLOOKUP(B63,'Drop Down List'!$A3:$B5,2,FALSE)","v":"Use SBITA term"},{"$f":"VLOOKUP(C63,'Drop Down List'!$A3:$B5,2,FALSE)","v":{"$error":"#N/A"}},{"$f":"VLOOKUP(D63,'Drop Down List'!$A3:$B5,2,FALSE)","v":{"$error":"#N/A"}},{"$f":"VLOOKUP(E63,'Drop Down List'!$A3:$B5,2,FALSE)","v":{"$error":"#N/A"}},{"$f":"VLOOKUP(F63,'Drop Down List'!$A3:$B5,2,FALSE)","v":{"$error":"#N/A"}},{"$f":"VLOOKUP(G63,'Drop Down List'!$A3:$B5,2,FALSE)","v":{"$error":"#N/A"}},{"$f":"VLOOKUP(H63,'Drop Down List'!$A3:$B5,2,FALSE)","v":{"$error":"#N/A"}},{"$f":"VLOOKUP(I63,'Drop Down List'!$A3:$B5,2,FALSE)","v":{"$error":"#N/A"}},{"$f":"VLOOKUP(J63,'Drop Down List'!$A3:$B5,2,FALSE)","v":{"$error":"#N/A"}},{"$f":"VLOOKUP(K63,'Drop Down List'!$A3:$B5,2,FALSE)","v":{"$error":"#N/A"}},{"$f":"VLOOKUP(L63,'Drop Down List'!$A3:$B5,2,FALSE)","v":{"$error":"#N/A"}}]
[]
["8.  Total (Remaining) Subscription Term Term per #18 (will automatically fill once completed below)",{"$f":"B98","v":84},{"$f":"C98","v":1},1,{"$f":"E98","v":1},1,1,1,1,1,1,1]
[]
["9.  Useful Life for SBITA Asset based on answers above (will automatically fill)",{"$f":"IF(B66<B68,B66,B68)","v":84},{"$f":"IF(C66<C68,C66,C68)","v":{"$error":"#N/A"}},{"$error":"#N/A"},{"$f":"IF(E66<E68,E66,E68)","v":{"$error":"#N/A"}},{"$error":"#N/A"},{"$error":"#N/A"},{"$error":"#N/A"},{"$error":"#N/A"},{"$error":"#N/A"},{"$error":"#N/A"},{"$error":"#N/A"}]
[]
["10.  Are there any adjustments for measurement of the SBITA Asset?"]
["Per GASB 96, the SBITA Asset cost = \n  + Initial SBITA Liability (calculated in PV calc tab)\nPlus/Minus Asset Adjustments:\n  - Incentives from SBITA Vendor received at or before Go-Live Date (i.e. to buy out a preexisting obligation or reimburse\n       certain implementation costs)\n  + Payments made to SBITA Vendor at or before Go-Live Date (i.e. downpayment or subscription payments before Go-Live Date)\n  + Capitalizable Implementation Costs (includes staff time, consultation costs and any other costs related to implementation)","Yes - Fill out on Asset Adj Tab"]
["If Yes, then please read Asset Adjustment instructions carefully in Asset Adj tab and fill out within the corresponding column:","Example - Asset Adj","SBITA # 1 - Asset Adj","SBITA # 2 - Asset Adj","SBITA # 3 - Asset Adj","SBITA # 4 - Asset Adj","SBITA # 5 - Asset Adj","SBITA # 6 - Asset Adj","SBITA # 7 - Asset Adj","SBITA # 8 - Asset Adj","SBITA # 9 - Asset Adj","SBITA # 10 - Asset Adj"]
["Note:  If SBITA previously did not meet the materiality threshold but now qualifies due to a Significant Modification AND that Significant Modification includes an UPGRADE, please use the Asset Adj tab to calculate and report the Capitalizable Implementation Costs of the Upgrade."]
[]
["11.  Software capitalized in AZ360?"]
["Because the calculation for the SBITA Asset includes the Subscripton Term, Present Value of the Liability AND Capitalizable Implementation Costs, this calculation will be performed manually by the GAAP Group outside of AZ360 and should NOT be entered into AZ360.  If this was done in error, please indicate \"Yes\" here.","No"]
[]
["12.  If the above question is answered Yes, please indicate the Asset # in AZ360 (You will be contacted by the GAAP Group with instructions on how to correct this).","N/A"]
[]
["IV.  SBITA Term (Subscription and Implementation)"]
["13.  Contract Start Date"]
["Enter the Effective Contract Start Date.  This may or may not be the same as the signed date.","2023-09-01"]
[]
["14.  Date Put Into Service/Go-Live Date (may be different than above)"]
["- If there will be a period needed to implement the software or other IT-related subscription, enter the Date the Software\n    was/will be Put Into Service, or Go-Live Date (if still in the implementation phase, enter the EXPECTED Go-Live Date).\n- If put into service immediately, then enter the Contract Start Date.","2024-09-01"]
[]
["15.  Contracted Subscription Term End Date"]
["Enter the date the contracted SBITA term ends, unless the agency is Reasonably Certain to exercise a Termination Clause, in which case, enter the date the agency plans to terminate the subscription.","2029-08-31"]
["Subscription Term in months (will automatically fill) - HIDE THIS LINE IN FINAL VERSION",{"$f":"ROUND(DATEDIF(B87,B90,\"M\"),0)+1","v":60},{"$f":"ROUND(DATEDIF(C87,C90,\"M\"),0)+1","v":1},{"$f":"ROUND(DATEDIF(D87,D90,\"M\"),0)+1","v":1},1,1,1,1,1,1,1,1]
[]
["16.  Options to Extend Term"]
["If subscription term extensions are available in the contract, AND the agency is reasonably certain to exercise it, enter # of months available to extend the subscription.",24,null,null,0]
[]
["17.  Subscription End Date including Extensions (will automatically fill).",{"$f":"EDATE(B87,B98)-1","v":"2031-08-31"},{"$f":"EDATE(C87,C98)-1","v":"1900-01-30"},{"$f":"EDATE(D87,D98)-1","v":"1900-01-30"},"1900-01-30","1900-01-30","1900-01-30","1900-01-30","1900-01-30","1900-01-30","1900-01-30","1900-01-30"]
[]
["18.  Total Subscription Term including Extensions in Months (will automatically fill)",{"$f":"B91+B94","v":84},{"$f":"C91+C94","v":1},1,{"$f":"E91+E94","v":1},1,1,1,1,1,1,1]
[]
["19.  Frequency of Subscription Payments"]
["Enter how often subscription payments are made (Monthly, Quarterly, Semi-Annually, Annually).  If payments are Less Often than Annually, choose Annually from the dropdown list here (frequency must be at least Annually for Present Value Calculation to work).  In the PV Calc tab, there are special instructions (Step #1f) and a space to describe the payment frequency (Step #1g) if Less Often than Annually.","Semi-annually"]
["# of pmts/yr - HIDE THIS LINE IN FINAL VERSION",{"$f":"IF(B101=\"Weekly\",52,IF(B101=\"Monthly\",12,IF(B101=\"Quarterly\",4,IF(B101=\"Semi-Annually\",2,1))))","v":2},1,{"$f":"IF(D101=\"Weekly\",52,IF(D101=\"Monthly\",12,IF(D101=\"Quarterly\",4,IF(D101=\"Semi-Annually\",2,1))))","v":1},1,1,1,1,1,1,1,1]
[]
["20.  How many payments from Date Put Into Service/Go-Live Date (#14) to Subscription End Date including Extensions (#17)?"]
["-  If payments are monthly, this answer will most likely be the same as the calculated number of months.  Please calculate\n   carefully if payments are not monthly.\n-  If payments are Less Often than Annually, list the # of years of the lease term rather than the total # of payments (e.g. payment\n   frequency every 5 years with a 20 year term would have a total of 4 payments, but enter 20 here instead of 4).  Again, this is\n   necessary for the Present Value Calculation to work.  If this is the case, read PV Calc instructions (Steps #1f & 1g) carefully.",14]
[]
["21.  Was the first subscription payment made at the beginning or at the end of the first payment period (a period is the length of time between payments - see frequency of payments in #19)?"]
["- For example, subscription began on 4/1 with monthly payments and first payment was due 4/30, then it would be the end\n    of the first payment period.\n- For a quarterly period, a payment due within the first 45 days of the quarter would be beginning of the period.","Begin"]
["Coding for Formulas - Begin = 1, End = 0 - HIDE THIS LINE IN FINAL VERSION",{"$f":"IF(B108=\"Begin\",1,0)","v":1},0,{"$f":"IF(D108=\"Begin\",1,0)","v":0},0,0,0,0,0,0,0,0]
[]
["22.  When is the first subscription payment due AFTER the Go-Live Date?"]
["Per GASB 96, the Subscription Term does not begin until after the SBITA is put into service (Go-Live Date).  Therefore, the first payment for the SBITA Liability Present Value Calculation does not occur until AFTER Go-Live.","2024-09-01"]
["Note:  Subscription Payments made BEFORE the Go-Live Date should be reported in the Asset Adj tab (Sections 2c & 2d)."]
[]
["V.  SBITA Liability"]
["SBITA Payments - PLEASE SEPARATE PAYMENTS TO BE MADE BETWEEN #23, #24 & #25 as much as possible:"]
["23.  Fixed Subscription Payment - Enter FIRST Fixed Payment Amount here (first payment AFTER Go-Live Date)"]
["To calculate the Fixed Subscription Payment:\n(a) Start with the fixed subscription periodic payments stated in the contract.\n(b) In addition, add \"Fixed In-Substance Fees\" to the above amount (see definition below under variable payments).\n(c) For payments that depend on an index or a rate (such as the Consumer Price Index or a market interest rate),\n      the payment should be initially measured using the index or rate published as of the start of the subscription term.\n(d) EXCLUDE any variable usage fees and/or support/maintenance service fees included in the payment (see #24 & 25 below)",450000]
["Because payments may not remain the same throughout the subscription term, fill out the Payment Schedule on the PV Calc tab.\nA space is provided (Step #1g) to describe how often payments increase, formulas, etc."]
[]
["24.  Variable Usage Fees over and above Fixed In-Substance Fees (do NOT include variable fees on PV Calc tab)"]
["(a) Variable usage fees include any part of the fee calculated on a usage basis.  For example, fees calculated as a quantity of\n       users (cost per user) or total gigs of data used, etc.  Per user fees are very common and could eliminate a SBITA entirely (if\n       all fees are based on # of users, then there is no fixed cost), so please review pricing details very carefully.\n(b) \"Fixed in-Substance Fees\" are the Minimum Usage Costs of a variable usage fee and should be included in the fixed payment\n       portion above.  For Example, if a software subscription includes up to 5 gigs of data used for a set fee, but charges extra for\n       every additional gig, the minimum fee for the first 5 gigs is the \"Fixed In-Substance Fee\", and the per gig fees above that\n       minimum would be the variable fees.  The \"Fixed In-Substance Fee\" should be added to the fixed payments above, and the\n       variable fee would be described here as \"$XX/gig used over 5 gigs\".  Please include how the fee is determined.","$50 per user fee"]
[]
["25.  Support or Maintenance Service Component of subscription agreement (do NOT include these service fees on PV Calc tab)"]
["(a) A service component of a subscription agreement could be, for example, IT Support, Maintenance, Helpline,\n      Troubleshooting, etc.  List amount of services periodic payment here (if it changes, list the first payment amount)",{"$f":"B118*0.025+1200","v":12450}]
[]
["(b) Please briefly describe the additional charges.","Troubleshooting/Help Services through phone or chat"]
[]
["26.  Termination penalties:"]
["a.  Is there a termination penalty if the subscription is terminated before the end of the subscription term?","No"]
[]
["b.  If so, is the agency reasonably certain to terminate the subscription early?"]
["Answer Yes only if the agency believes that a fiscal funding clause or termination clause will be exercised and there will be a penalty assessed if it is.","N/A"]
["If Yes, then enter the termination penalty on the PV Calc tab."]
[]
["27.  Subscription incentives (during subscription term):"]
["a.  Does the subscription agreement contain incentives that will occur AFTER the start of the subscription term?\n  - For example, Abated or Free Subscription periods,\n  -  Reductions in subscription payments,\n  - Bonus amounts paid from the SBITA Vendor to the State, etc?","No"]
[]
["b.  If Yes, please describe:","N/A"]
["If applicable, read instructions on PV Calc tab carefully on how to include subscription incentives in the Payment Schedule\n(Steps #1d & 1e)."]
[]
["VI.  Interest Rate"]
["28.  Enter the interest rate for the SBITA using one of the three methods listed below:"]
["a.  If the interest rate is specifically identified in the contract (explicit rate), use this rate."]
["b.  If the explicit rate is unknown, there may be an implicit rate (please see tab, \"Implicit Rate info\" for additional information\n      and a place to enter the information to calculate it)."]
["c.  If both the explicit interest rate and implicit rate are unknown, identify the interest rate in the table below using the\n     subscription term (total subscription term in months is copied here from #18 above for ease of reference).",{"$f":"B98","v":84},1,1,1,1,1,1,1,1,1,1]
["For example: If initial contract term was 3 years (36 months) plus a 2-year (24 month) extension,  for a total of 5 years (60 months) use the Mid-Term rate below.",3.1612000000000001E-2]
[]
["Short-Term in months = 0 - 48 months"]
["Mid-Term in months = 49 - 96 months"]
["Long-Term in months = 97 months or longer"]
[]
[]
[]
[]
["29.  Periodic Interest Rate - based on frequency of payments (will automatically fill)",{"$f":"ROUND(B147/B102,6)","v":1.5806000000000001E-2},0,0,0,0,0,0,0,0,0,0]
[]
["VII.  Calculate the SBITA Liability & Asset"]
["30.  Fill out the Subscription Payment Schedule on the \"PV Calc\" tab corresponding to the correct SBITA #."]
["The Present Value of the SBITA Liability, Amortization Table and SBITA Asset Cost will be calculated in each respective PV Calc tab.  These are calculated with macros, and are not required to be completed by the agencies.\n  - At a minimum, however, the Subscription Payment Schedule must be completed.","Example - PV Calc","SBITA # 1 - PV Calc","SBITA # 2 - PV Calc","SBITA # 3 - PV Calc","SBITA # 4 - PV Calc","SBITA # 5 - PV Calc","SBITA # 6 - PV Calc","SBITA # 7 - PV Calc","SBITA # 8 - PV Calc","SBITA # 9 - PV Calc","SBITA # 10 - PV Calc"]

{"sheet":"Subscrptn Split","index":1,"n_rows":130,"n_cols":12,"rows_kept":130,"cut":false,"hidden":false,"merged":[[0,0,0,1],[1,0,1,1],[3,0,3,1],[4,0,4,1],[5,0,5,1]]}
["GASB 96 SBITA Collection Form - Subscription Split Info - for SBITAs paid from multiple sources"]
["If a SBITA has more than one funding source for the payments during the subscription term, please complete the information below. "]
[]
["Note 1 - The Teal highlighted cells are for manual or drop-down input. The Orange highlighted cells contain formulas and will automatically fill. Please do not change the Orange cells."]
["Note 2 - If the Agency divides out the SBITA payment with a Cost Allocation Function (or divides it out to more than the 4 lines provided), then ONLY provide the breakout for the 3 REQUIRED COA Elements to reduce the number of lines needed to be reported.  The other COA elements may be important for agency or unit internal reporting, but is not necessary for reporting at the ACFR level."]
["Note 3 - Only provide split information for the Fixed Subscription amount to be paid (#23 on Data Input tab).  Exclude the COAs (if different) for any variable payments (#24) or payments for services, maintenance, etc (#25) that are identified separately within the SBITA contract."]
[]
["Use the SAME COLUMN here as was used in the \"Data Input\" tab.","Example","SBITA # 1","SBITA # 2","SBITA # 3","SBITA # 4","SBITA # 5","SBITA # 6","SBITA # 7","SBITA # 8","SBITA # 9","SBITA # 10"]
["Contract # (#1a from Data Input tab)",{"$f":"'Data Input'!B35","v":"ADA2401"},{"$f":"'Data Input'!C35","v":0},{"$f":"'Data Input'!D35","v":0},{"$f":"'Data Input'!E35","v":0},{"$f":"'Data Input'!F35","v":0},{"$f":"'Data Input'!G35","v":0},{"$f":"'Data Input'!H35","v":0},{"$f":"'Data Input'!I35","v":0},{"$f":"'Data Input'!J35","v":0},{"$f":"'Data Input'!K35","v":0},{"$f":"'Data Input'!L35","v":0}]
[]
["Is the subscription payment divided by a Percentage (%), or a Specific Dollar ($) Amount (i.e. 50% paid by one Source, and 50% paid by another Source; or first $1,000 paid by a Grant, the remainder paid by another Source)?","Percentage (%)"]
["Based on your answer, please fill out the proper section below (Percentage or Dollar Amount Split)"]
[]
["Percentage (%) Split:"]
["How many Sources are there (how many funding lines in your SBITA payment)?",2]
[]
["1 - Percentage of funding from First Source",0.7]
["Please provide COA for First Funding Source below.  REQUIRED elements are starred (*). Use any other COA indicated below that will help identify the payments made for each lease."]
["1a - Agency *","ADA"]
["1b - Fund *","AD1234"]
["1c - Object *",7160]
["1d - Appropriation"]
["1e - Unit"]
["1f - Task"]
["1g - Sub Task"]
["1h - Program"]
["1i - Phase"]
["1j - Program Period"]
["1k - Dept Object"]
[]
["2 - Percentage of funding from Second Source",0.3]
["Please provide COA for Second Funding Source below.  REQUIRED elements are starred (*). Use any other COA indicated below that will help identify the payments made for each lease."]
["2a - Agency *","ADA"]
["2b - Fund *",1000]
["2c - Object *",7160]
["2d - Appropriation"]
["2e - Unit "]
["2f - Task "]
["2g - Sub Task"]
["2h - Program"]
["2i - Phase"]
["2j - Program Period"]
["2k - Dept Object"]
[]
["3 - Percentage of funding from Third Source"]
["Please provide COA for Third Funding Source below.  REQUIRED elements are starred (*). Use any other COA indicated below that will help identify the payments made for each lease."]
["3a - Agency *"]
["3b - Fund *"]
["3c - Object *"]
["3d - Appropriation"]
["3e - Unit "]
["3f - Task "]
["3g - Sub Task"]
["3h - Program"]
["3i - Phase"]
["3j - Program Period"]
["3k - Dept Object"]
[]
["4 - Percentage of funding from Fourth Source"]
["Please provide COA for Fourth Funding Source below.  REQUIRED elements are starred (*). Use any other COA indicated below that will help identify the payments made for each lease."]
["4a - Agency *"]
["4b - Fund *"]
["4c - Object *"]
["4d - Appropriation"]
["4e - Unit "]
["4f - Task "]
["4g - Sub Task"]
["4h - Program"]
["4i - Phase"]
["4j - Program Period"]
["4k - Dept Object"]
[]
["Specific Dollar ($) Amount Split:"]
["How many Sources are there (how many funding lines in your SBITA payment)?"]
[]
["1 - Amount of funding from First Source"]
["Please provide COA for First Funding Source below.  REQUIRED elements are starred (*). Use any other COA indicated below that will help identify the payments made for each lease."]
["1a - Agency *"]
["1b - Fund *"]
["1c - Object *"]
["1d - Appropriation"]
["1e - Unit"]
["1f - Task"]
["1g - Sub Task"]
["1h - Program"]
["1i - Phase"]
["1j - Program Period"]
["1k - Dept Object"]
[]
["2 - Amount of funding from Second Source"]
["Please provide COA for Second Funding Source below.  REQUIRED elements are starred (*). Use any other COA indicated below that will help identify the payments made for each lease."]
["2a - Agency *"]
["2b - Fund *"]
["2c - Object *"]
["2d - Appropriation"]
["2e - Unit "]
["2f - Task "]
["2g - Sub Task"]
["2h - Program"]
["2i - Phase"]
["2j - Program Period"]
["2k - Dept Object"]
[]
["3 - Amount of funding from Third Source"]
["Please provide COA for Third Funding Source below.  REQUIRED elements are starred (*). Use any other COA indicated below that will help identify the payments made for each lease."]
["3a - Agency *"]
["3b - Fund *"]
["3c - Object *"]
["3d - Appropriation"]
["3e - Unit "]
["3f - Task "]
["3g - Sub Task"]
["3h - Program"]
["3i - Phase"]
["3j - Program Period"]
["3k - Dept Object"]
[]
["4 - Amount of funding from Fourth Source"]
["Please provide COA for Fourth Funding Source below.  REQUIRED elements are starred (*). Use any other COA indicated below that will help identify the payments made for each lease."]
["4a - Agency *"]
["4b - Fund *"]
["4c - Object *"]
["4d - Appropriation"]
["4e - Unit "]
["4f - Task "]
["4g - Sub Task"]
["4h - Program"]
["4i - Phase"]
["4j - Program Period"]
["4k - Dept Object"]

{"sheet":"Asset Adj","index":2,"n_rows":129,"n_cols":12,"rows_kept":129,"cut":false,"hidden":false,"merged":[[0,0,0,1],[1,0,1,1],[19,0,19,1],[20,0,20,1],[21,0,21,1]]}
["GASB 96 SBITA Collection Form - Asset Adjustments"]
["If a SBITA has additional costs or incentives at or before the In-Service (or Go-Live) Date, the Subscription Asset will need to be adjusted."]
[]
["Per GASB 96, the SBITA Asset cost = \n  + Initial SBITA Liability (calculated in PV calc tab)\nPlus/Minus Asset Adjustments:\n  - Incentives from SBITA Vendor received at or before Go-Live Date (i.e. to buy out a preexisting obligation or\n       reimburse certain implementation costs)\n  + Payments made to SBITA Vendor at or before Go-Live Date (i.e. downpayment or subscription payments\n       before Go-Live Date)\n  + Capitalizable Implementation Costs (includes staff time, consultation costs and any other costs related to\n       implementation)",null,"SBITA # 1 - Asset Adj\nPlease fully read instructions to the left before filling in requested information below","SBITA # 2 - Asset Adj\nPlease fully read instructions to the left before filling in requested information below","SBITA # 3 - Asset Adj\nPlease fully read instructions to the left before filling in requested information below","SBITA # 4 - Asset Adj\nPlease fully read instructions to the left before filling in requested information below","SBITA # 5 - Asset Adj\nPlease fully read instructions to the left before filling in requested information below","SBITA # 6 - Asset Adj\nPlease fully read instructions to the left before filling in requested information below","SBITA # 7 - Asset Adj\nPlease fully read instructions to the left before filling in requested information below","SBITA # 8 - Asset Adj\nPlease fully read instructions to the left before filling in requested information below","SBITA # 9 - Asset Adj\nPlease fully read instructions to the left before filling in requested information below","SBITA # 10 - Asset Adj\nPlease fully read instructions to the left before filling in requested information below"]
[]
["There are 3 phases to software implementation, but not all phases are capitalizable:"]
["(1) Preliminary Project Stage","EXPENSE"]
["Includes:  The conceptual formulation and evaluation of alternatives,\nthe determination of the existence of needed technology, and\nthe final selection of alternatives for the SBITA (including contract negotiations)"]
["(2) Initial Implementation Stage","CAPITALIZE"]
["Includes:  Ancillary charges related to designing the chosen path (configuration, coding, testing & installation), and\nother charges necessary to place the subscription asset into service"]
["Types of costs that might occur in this stage:  Consulting fees from the SBITA Vendor or a third party consultant,\nInternal Staff Time related to the activities described above"]
["This stage is complete when the SBITA Asset is placed into service (Go-Live Date)"]
["EXCLUSIONS from Capitalizable Implementation Costs:  Training","EXPENSE"]
["Always expense training costs, whether during the initial implementation stage or operational stage"]
["(3) Operation & Additional Implementation Stage","Expense or Capitalize\n(see below)"]
["(a) Includes:  Maintenance, troubleshooting, & other activities associated with the government's ongoing access to the underlying IT assets &/or SBITA asset.","EXPENSE"]
["(b) Also may include additional implementation activities such as costs related to additional modules for the software not yet in service or upgrades","CAPITALIZE"]
["Note:  If possible, the State would prefer to track separate modules as separate SBITAs, but will add to the original asset if it is not possible to determine how to split the contract into those separate components.","Contact the GAAP Group to discuss if relavent"]
[]
["Note 1 - The Teal highlighted cells are for manual or drop-down input. The Orange highlighted cells contain formulas and will automatically fill. Please do not change the Orange cells."]
["Note 2 - If there are any amounts reported on this tab, you MUST attach Documentation (i.e. reports from AZ360) totaling the adjustments reported below for the current fiscal year.  The backup should include the required COA elements listed below as well as the Date & FY of the transactions.\nIf not recorded in AZ360, may attach invoices from the vendor for additional costs, or evidence of incentives received if paid to a third party."]
["Note 3 - Object 8485 - SBITA Implementation (a Capital Outlay acct) has been created to track Capitalizable Implementatiom Costs paid to the SBITA Vendor or a 3rd party consultant.\n**Object 8485 - SBITA Implementation is suggested, but not required, for recording Capitalizable Implementation Costs for SBITAs**"]
[]
["Use the SAME COLUMN here as was used in the \"Data Input\" tab.","Example","SBITA # 1","SBITA # 2","SBITA # 3","SBITA # 4","SBITA # 5","SBITA # 6","SBITA # 7","SBITA # 8","SBITA # 9","SBITA # 10"]
["Contract # (#1a from Data Input tab)",{"$f":"'Data Input'!B35","v":"ADA2401"},{"$f":"'Data Input'!C35","v":0},{"$f":"'Data Input'!D35","v":0},{"$f":"'Data Input'!E35","v":0},{"$f":"'Data Input'!F35","v":0},{"$f":"'Data Input'!G35","v":0},{"$f":"'Data Input'!H35","v":0},{"$f":"'Data Input'!I35","v":0},{"$f":"'Data Input'!J35","v":0},{"$f":"'Data Input'!K35","v":0},{"$f":"'Data Input'!L35","v":0}]
[]
["Are there any adjustments for measurement of the SBITA Asset? (#10 from Data Input tab)",{"$f":"'Data Input'!B73","v":"Yes - Fill out on Asset Adj Tab"},{"$f":"'Data Input'!C73","v":0},{"$f":"'Data Input'!D73","v":0},{"$f":"'Data Input'!E73","v":0},{"$f":"'Data Input'!F73","v":0},{"$f":"'Data Input'!G73","v":0},{"$f":"'Data Input'!H73","v":0},{"$f":"'Data Input'!I73","v":0},{"$f":"'Data Input'!J73","v":0},{"$f":"'Data Input'!K73","v":0},{"$f":"'Data Input'!L73","v":0}]
[]
["Contract Start Date (#13 from Data Input tab)",{"$f":"'Data Input'!B84","v":"2023-09-01"},{"$f":"'Data Input'!C84","v":"00:00:00"},{"$f":"'Data Input'!D84","v":"00:00:00"},{"$f":"'Data Input'!E84","v":"00:00:00"},{"$f":"'Data Input'!F84","v":"00:00:00"},{"$f":"'Data Input'!G84","v":"00:00:00"},{"$f":"'Data Input'!H84","v":"00:00:00"},{"$f":"'Data Input'!I84","v":"00:00:00"},{"$f":"'Data Input'!J84","v":"00:00:00"},{"$f":"'Data Input'!K84","v":"00:00:00"},{"$f":"'Data Input'!L84","v":"00:00:00"}]
["It is possible to have adjustments to the SBITA Asset even without an implementation period as not all adjustment items listed above are related to implementation."]
[]
["Date Put Into Service/Go-Live Date (#14 from Data Input tab)",{"$f":"'Data Input'!B87","v":"2024-09-01"},{"$f":"'Data Input'!C87","v":"00:00:00"},{"$f":"'Data Input'!D87","v":"00:00:00"},{"$f":"'Data Input'!E87","v":"00:00:00"},{"$f":"'Data Input'!F87","v":"00:00:00"},{"$f":"'Data Input'!G87","v":"00:00:00"},{"$f":"'Data Input'!H87","v":"00:00:00"},{"$f":"'Data Input'!I87","v":"00:00:00"},{"$f":"'Data Input'!J87","v":"00:00:00"},{"$f":"'Data Input'!K87","v":"00:00:00"},{"$f":"'Data Input'!L87","v":"00:00:00"}]
["If SBITA is not yet in service, this is the ESTIMATED Go-Live Date per the contract"]
[]
["1.  Incentives from the SBITA Vendor"]
["(a) Per the description above, were any incentives received from the SBITA Vendor AT or BEFORE the Go-Live Date (could be during the implementation period)?","No"]
[]
["(b) If YES, please describe [if incentive from SBITA Vendor was paid to a 3rd party (i.e. to buy out a preexisting obligation), please provide details here]","N/A"]
[]
["(c) Amount received (or deemed received) DURING FY2024 (7/1/2023 - 6/30/2024)\n        - Please enter COA info below",0]
["(d) Amount EXPECTED TO BE received (or deemed received) in a future year (7/1/2024 or later) but before\n       Go-Live Date",0]
[]
["(e) Please provide COA for any incentives received from the SBITA Vendor in 1(c) above (received during FY2024).\n       REQUIRED elements are starred (*). Use any other COA indicated below that will help identify the payments\n       made for each SBITA."]
["Note:  If incentive was paid directly to a 3rd party AND was not recorded into AZ360, please explain here","N/A"]
["1(e)i - Agency *"]
["1(e)ii - Fund *"]
["1(e)iii - Revenue or Object (please indicate which) *"]
["1(e)iv - Appropriation"]
["1(e)v - Unit"]
["1(e)vi - Task"]
["1(e)vii - Sub Task"]
["1(e)viii - Program"]
["1(e)ix - Phase"]
["1(e)x - Program Period"]
["1(e)xi - Dept Object"]
[]
["2.  Payments made to the SBITA Vendor at or before the Go-Live Date NOT related to\n     implementation (i.e. Downpayment or Subscription Payments made before Go-Live Date)"]
["(a) Per the description above, were any payments made to the SBITA Vendor AT or BEFORE the Go-Live Date (could be during the implementation period)?","Yes"]
[]
["(b) If YES, please describe the nature of the payments","1st Subscription Payment was during implementation period"]
[]
["(c) Amount paid DURING FY2024 (7/1/2023 - 6/30/2024)\n     - Please enter COA info below",450000]
["(d) Amount EXPECTED TO BE paid in a future year (7/1/2024 or later) but before Go-Live Date (i.e. additional\n       subscription payments due before expected Go-Live Date).",0]
[]
["(e) Please provide COA for amounts listed in 2(c) above (paid during FY2024).  REQUIRED elements are starred (*). Use\n      any other COA indicated below that will help identify the payments made for each SBITA."]
["2(e)i - Agency *","ADA"]
["2(e)ii - Fund *","AD1234"]
["2(e)iii - Object *",7160]
["2(e)iv - Appropriation"]
["2(e)v - Unit"]
["2(e)vi - Task"]
["2(e)vii - Sub Task"]
["2(e)viii - Program"]
["2(e)ix - Phase"]
["2(e)x - Program Period"]
["2(e)xi - Dept Object"]
[]
["3.  Payments made to the SBITA Vendor and/or a 3rd party at or before the Go-Live Date related\n     to Capitalizable Implementation Costs"]
["Note:  If SBITA was previously excluded due to not meeting the materiality threshold, but now qualifies due to a significant modification AND this modification includes an UPGRADE, please include the Capitalizable Implementation Costs of the Upgrade here (described in Phase 3(b) above)."]
["(a) Per the description above, were any payments made to the SBITA Vendor or a 3rd party consultant that qualify as Capitalizable Implementation Costs?","Yes - to 3rd party consultant"]
[]
["(b) If YES, please describe the nature of the payments & name of vendor if a 3rd party consultant","Implementation consultants - Conversion Wizards, Inc"]
[]
["(c) Amount paid DURING FY2024 (7/1/2023 - 6/30/2024)\n     - Please enter COA info below",1200000]
["(d) If implementation is not yet complete, amount EXPECTED TO BE PAID in the future (7/1/2024 or later) but BEFORE\n       Go-Live Date",500000]
[]
["(e) Please provide COA for amounts listed in 3(c) above (paid during FY2024).  REQUIRED elements are starred (*). Use\n       any other COA indicated below that will help identify the payments made for each SBITA."]
["3(e)i - Agency *","ADA"]
["3(e)ii - Fund *","AD1234"]
["3(e)iii - Object *\n                (Object 8485 - SBITA Implementation has been set up for this, but please provide actual acct used)",8485]
["3(e)iv - Appropriation"]
["3(e)v - Unit"]
["3(e)vi - Task"]
["3(e)vii - Sub Task"]
["3(e)viii - Program"]
["3(e)ix - Phase"]
["3(e)x - Program Period"]
["3(e)xi - Dept Object"]
[]
["4.  Internal Staff Costs that qualify as Capitalizable Implementation Costs"]
["(a) Per the description above, did any staff time qualify as capitalizable implementation costs and, if so, was that time tracked?\nNote:  DO NOT Include any Staff Training Time in the calculations for this item","Yes & was tracked"]
[]
["(b) If Yes & it was tracked, please describe the specific method used for tracking the time (i.e. specific coding by staff when reporting on their time sheets, tracking manually on a spreadsheet, etc)","Used Program code 1111 on all implementation-related time"]
[]
["(c) If Yes & it was NOT tracked, can a reasonable estimate be made?\n      If so, please provide estimate below.  Also, include calculations & methodology in the documentation.","N/A"]
[]
["(d) Internal Staff Implementation Costs paid DURING FY2024 (7/1/2023 - 6/30/2024)\n       - Please enter COA info below (if possible)",25480]
["(e) If implementation is not yet complete, Estimated Staff Costs EXPECTED TO BE INCURRED in the future (7/1/2024 or\n       later) but BEFORE Go-Live Date",5000]
[]
["(f) If staff time was tracked with a special code in AZ360, please provide the COA for amounts listed in 4(d) above (paid during FY2024).  REQUIRED elements are starred (*). Use any other COA indicated below that will help identify the the staff costs.  If there are multiple COAs related to staff time (payroll), please ensure that the COAs are included in the backup documentation and notate it here with \"Various - see backup\"."]
["4(f)i - Agency *","ADA"]
["4(f)ii - Fund *",1000]
["4(f)iii - Object *","Various PR accts - see backup"]
["4(f)iv - Appropriation"]
["4(f)v - Unit"]
["4(f)vi - Task"]
["4(f)vii - Sub Task"]
["4(f)viii - Program","Program 1111 was used to ID all staff time related to implementation"]
["4(f)ix - Phase"]
["4(f)x - Program Period"]
["4(f)xi - Dept Object"]
[]
[]
["5.  Total Asset Adjustment Costs/Incentives paid/received DURING FY2024",{"$f":"-B40+B62+B84+B107","v":1675480},0,0,0,0,0,0,0,0,0,0]
["6.  Total ESTIMATED Asset Adjustment Costs/Incentives YET TO BE PAID (FY2025 to the end of implementation period)",{"$f":"-B41+B63+B85+B108","v":505000},0,0,0,0,0,0,0,0,0,0]
[]
["8.  Based on Go-Live Date, is the Total as of 6/30/2024 the Final Adj Amount or still Development in Process?",{"$f":"IF(B32<B128,\"FINAL Adj Amount\",\"Development in Progress\")","v":"Development in Progress"},{"$f":"IF(C32<$B128,\"FINAL Adj Amount\",\"Development in Progress\")","v":"FINAL Adj Amount"},{"$f":"IF(D32<$B128,\"FINAL Adj Amount\",\"Development in Progress\")","v":"FINAL Adj Amount"},"FINAL Adj Amount","FINAL Adj Amount","FINAL Adj Amount","FINAL Adj Amount","FINAL Adj Amount","FINAL Adj Amount","FINAL Adj Amount","FINAL Adj Amount"]
["Last day of current FY - Hide in final version","2024-06-30"]
["Note:  If Implementation Period is not yet complete, then only a Development in Progress Asset will be recognized at this point.  The SBITA Liability & SBITA Asset will not be recognized until the SBITA is Put in Service/Go-Live Date.  If this is the case, please continue to track all Implementation Costs.  This info will be requested in future years through the annual Activity Form.\nIn addition, please DO NOT ENTER ANY SBITA DEVELOPMENT IN PROGRESS or IMPLEMENTATION COSTS INTO AZ360 FIXED ASSETS.  Because a SBITA Asset includes any adjustments listed above PLUS the Present Value of the Fixed Payments (Liability), it all needs to be calculated manually."]

{"sheet":"Implicit Rate info","index":3,"n_rows":29,"n_cols":12,"rows_kept":29,"cut":false,"hidden":false,"merged":[[0,0,0,1]]}
["GASB 96 SBITA Collection Form - Calculating an Implicit Rate on a SBITA"]
[]
["If an interest rate is not explicitely stated within the SBITA contract, there may be an implicit rate, which can be calculated if the information requested below is available."]
[]
["In addition to the information provided within the Data Input tab (see orange auto-filled cells below), check the SBITA contract for availability of the 3 additional data items requested below to determine the Implicit Rate."]
[]
["All 3 items requested below are needed to calculate the Implicit Rate.  If this information is unavailable, then use the Discount Rates provided on the Data Input tab (yellow highlighted table)."]
[]
["If ALL of the information requested below is available for a SBITA, please enter the information within the correct SBITA # column below."]
[]
["Note - The Teal highlighted cells are for manual input. The Orange highlighted cells contain formulas and will automatically fill. Please do not change the Orange cells."]
[]
["Use the SAME COLUMN here as was used in the \"Data Input\" tab.","Example","SBITA # 1","SBITA # 2","SBITA # 3","SBITA # 4","SBITA # 5","SBITA # 6","SBITA # 7","SBITA # 8","SBITA # 9","SBITA # 10"]
["Contract # (#1a from Data Input Tab)",{"$f":"'Data Input'!B35","v":"ADA2401"},{"$f":"'Data Input'!C35","v":0},{"$f":"'Data Input'!D35","v":0},{"$f":"'Data Input'!E35","v":0},{"$f":"'Data Input'!F35","v":0},{"$f":"'Data Input'!G35","v":0},{"$f":"'Data Input'!H35","v":0},{"$f":"'Data Input'!I35","v":0},{"$f":"'Data Input'!J35","v":0},{"$f":"'Data Input'!K35","v":0},{"$f":"'Data Input'!L35","v":0}]
["Cash Flows at Beginning or End (Section IV, #21 of Data Input tab)",{"$f":"'Data Input'!B108","v":"Begin"},{"$f":"'Data Input'!C108","v":0},{"$f":"'Data Input'!D108","v":0},{"$f":"'Data Input'!E108","v":0},{"$f":"'Data Input'!F108","v":0},{"$f":"'Data Input'!G108","v":0},{"$f":"'Data Input'!H108","v":0},{"$f":"'Data Input'!I108","v":0},{"$f":"'Data Input'!J108","v":0},{"$f":"'Data Input'!K108","v":0},{"$f":"'Data Input'!L108","v":0}]
["Number of payments (Section IV, #20)",{"$f":"'Data Input'!B105","v":14},{"$f":"'Data Input'!C105","v":0},{"$f":"'Data Input'!D105","v":0},{"$f":"'Data Input'!E105","v":0},{"$f":"'Data Input'!F105","v":0},{"$f":"'Data Input'!G105","v":0},{"$f":"'Data Input'!H105","v":0},{"$f":"'Data Input'!I105","v":0},{"$f":"'Data Input'!J105","v":0},{"$f":"'Data Input'!K105","v":0},{"$f":"'Data Input'!L105","v":0}]
["Frequency of payments (Section IV, #19)",{"$f":"'Data Input'!B101","v":"Semi-annually"},{"$f":"'Data Input'!C101","v":0},{"$f":"'Data Input'!D101","v":0},{"$f":"'Data Input'!E101","v":0},{"$f":"'Data Input'!F101","v":0},{"$f":"'Data Input'!G101","v":0},{"$f":"'Data Input'!H101","v":0},{"$f":"'Data Input'!I101","v":0},{"$f":"'Data Input'!J101","v":0},{"$f":"'Data Input'!K101","v":0},{"$f":"'Data Input'!L101","v":0}]
["Date of first payment (Section IV, #22)",{"$f":"'Data Input'!B112","v":"2024-09-01"},{"$f":"'Data Input'!C112","v":"00:00:00"},{"$f":"'Data Input'!D112","v":"00:00:00"},{"$f":"'Data Input'!E112","v":"00:00:00"},{"$f":"'Data Input'!F112","v":"00:00:00"},{"$f":"'Data Input'!G112","v":"00:00:00"},{"$f":"'Data Input'!H112","v":"00:00:00"},{"$f":"'Data Input'!I112","v":"00:00:00"},{"$f":"'Data Input'!J112","v":"00:00:00"},{"$f":"'Data Input'!K112","v":"00:00:00"},{"$f":"'Data Input'!L112","v":"00:00:00"}]
["Date Put Into Service/Go-Live Date (#14 from Data Input tab)",{"$f":"'Data Input'!B87","v":"2024-09-01"},{"$f":"'Data Input'!C87","v":"00:00:00"},{"$f":"'Data Input'!D87","v":"00:00:00"},{"$f":"'Data Input'!E87","v":"00:00:00"},{"$f":"'Data Input'!F87","v":"00:00:00"},{"$f":"'Data Input'!G87","v":"00:00:00"},{"$f":"'Data Input'!H87","v":"00:00:00"},{"$f":"'Data Input'!I87","v":"00:00:00"},{"$f":"'Data Input'!J87","v":"00:00:00"},{"$f":"'Data Input'!K87","v":"00:00:00"},{"$f":"'Data Input'!L87","v":"00:00:00"}]
["Subscription End Date including Extensions (Section IV, #17)",{"$f":"'Data Input'!B96","v":"2031-08-31"},{"$f":"'Data Input'!C96","v":"1900-01-30"},{"$f":"'Data Input'!D96","v":"1900-01-30"},{"$f":"'Data Input'!E96","v":"1900-01-30"},{"$f":"'Data Input'!F96","v":"1900-01-30"},{"$f":"'Data Input'!G96","v":"1900-01-30"},{"$f":"'Data Input'!H96","v":"1900-01-30"},{"$f":"'Data Input'!I96","v":"1900-01-30"},{"$f":"'Data Input'!J96","v":"1900-01-30"},{"$f":"'Data Input'!K96","v":"1900-01-30"},{"$f":"'Data Input'!L96","v":"1900-01-30"}]
[]
["1.  Fair value of the software at commencement "]
[]
["2.  Expected fair value of the software at the end of the subscription term"]
[]
["3.  Any initial direct costs that the Software Vendor incurs"]
[]
["IF THE IMPLICIT RATE INFO IS FILLED OUT ABOVE, please enter \"See Implicit Rate Info tab\" within the interest rate cell (Sec VI, #28) on the Data Input tab."]
["With the information provided above, the GAO office will calculate the Implicit Rate and the Present Value of the Lease."]

{"sheet":"How to Enable Macros","index":4,"n_rows":5,"n_cols":1,"rows_kept":5,"cut":false,"hidden":false,"merged":[]}
["YOUR EXCEL TRUST CENTER SETTINGS MUST BE MACRO-ENABLED TO RUN THE MACROS IN THIS FILE."]
["(This file was created in Excel Version 2016)"]
["To enable settings:"]
["Go to File > Options > Trust Center > Trust Center Settings… "]
["Check \"Enable all macros\" and \"Trust access to the VBA project object model\" as shown below."]

{"sheet":"Example - PV Calc","index":5,"n_rows":156,"n_cols":16,"rows_kept":156,"cut":false,"hidden":false,"merged":[[59,2,62,2],[71,0,73,2]]}
["Present Value Calculations tab - Example (column B)","Contract #",{"$f":"'Data Input'!B35","v":"ADA2401"},null,"Present Value Table",null,null,null,null,"Amortization Table"]
["Periodic Interest Rate (Section VI, #28-29 from Data Input tab)",{"$f":"'Data Input'!B156","v":1.5806000000000001E-2},null,null,"Period","Payment Amount","Present Value",null,null,"Period","Date","Beginning Balance","Payment","Principal","Interest","Ending Balance"]
["Cash Flows at Beginning or End (Section IV, #21)",{"$f":"'Data Input'!B108","v":"Begin"},"Important:",null,1,450000,{"$f":"F3 / (((1+$B$2)) ^ (E3-1))","v":450000},null,null,1,{"$f":"B6","v":"2024-09-01"},{"$f":"B25","v":6305895.6240324425},450000,{"$f":"M3-O3","v":450000},0,{"$f":"L3-N3","v":5855895.6240324425}]
["Number of payments (Section IV, #20)",{"$f":"'Data Input'!B105","v":14},"Do not insert/delete/move",null,2,450000,442997.97402259882,null,null,2,{"$f":"EDATE($B$6,6)","v":"2025-03-01"},{"$f":"P3","v":5855895.6240324425},450000,357441.71,{"$f":"ROUND(L4*$B$2,2)","v":92558.29},5498453.9140324425]
["Frequency of payments (Section IV, #19)",{"$f":"'Data Input'!B101","v":"Semi-annually"},"cells B2:B8",null,3,450000,436104.89997361583,null,null,3,{"$f":"EDATE($B$6,12)","v":"2025-09-01"},5498453.9140324425,450000,363091.44,86908.56,5135362.4740324421]
["Date of first payment (Section IV, #22)",{"$f":"'Data Input'!B112","v":"2024-09-01"},"(macros depend on them)",null,4,450000,429319.08255475532,null,null,4,{"$f":"EDATE($B$6,18)","v":"2026-03-01"},5135362.4740324421,450000,368830.46,81169.539999999994,4766532.0140324421]
["Date Put Into Service/Go-Live Date (#14 from Data Input tab)",{"$f":"'Data Input'!B87","v":"2024-09-01"},null,null,5,500000,469598.72538517893,null,null,5,{"$f":"EDATE($B$6,24)","v":"2026-09-01"},4766532.0140324421,500000,424660.19,75339.81,4341871.8240324417]
["Subscription End Date including Extensions (Section IV, #17)",{"$f":"'Data Input'!B96","v":"2031-08-31"},null,null,6,500000,462291.74210939778,null,null,6,{"$f":"EDATE($B$6,30)","v":"2027-03-01"},4341871.8240324417,500000,431372.37,68627.63,3910499.4540324416]
[null,null,null,null,7,500000,455098.4559152021,null,null,7,{"$f":"EDATE($B$6,36)","v":"2027-09-01"},3910499.4540324416,500000,438190.65,61809.35,3472308.8040324417]
["Fixed Subscription Payment Schedule (Section V, #23 & see instructions below):","Amount","# of Payments",null,8,500000,448017.09766943892,null,null,8,{"$f":"EDATE($B$6,42)","v":"2028-03-01"},3472308.8040324417,500000,445116.69,54883.31,3027192.1140324418]
["Payment Amount #1 & # of Payments at this amount",450000,4,null,9,500000,441045.92576676933,null,null,9,{"$f":"EDATE($B$6,48)","v":"2028-09-01"},3027192.1140324418,500000,452152.2,47847.8,2575039.9140324416]
["Payment Amount #2 & # of Payments at this amount",500000,6,null,10,500000,434183.22570133407,null,null,10,{"$f":"EDATE($B$6,54)","v":"2029-03-01"},2575039.9140324416,500000,459298.92,40701.08,2115740.9940324416]
["Payment Amount #3 & # of Payments at this amount",550000,4,null,11,550000,470170.04060959222,null,null,11,{"$f":"EDATE($B$6,60)","v":"2029-09-01"},2115740.9940324416,550000,516558.6,33441.4,1599182.3940324415]
["Payment Amount #4 & # of Payments at this amount",0,0,null,12,550000,462854.16763593856,null,null,12,{"$f":"EDATE($B$6,66)","v":"2030-03-01"},1599182.3940324415,550000,524723.31999999995,25276.68,1074459.0740324417]
["Totals from add'l table below (if needed)",{"$f":"B102","v":0},{"$f":"C102","v":0},null,13,550000,455652.13006808248,null,null,13,{"$f":"EDATE($B$6,72)","v":"2030-09-01"},1074459.0740324417,550000,533017.1,16982.900000000001,541441.97403244174]
["Total Subscription Payments (sum of all payment amounts * # of payments)",{"$f":"(B11*C11)+(B12*C12)+(B13*C13)+(B14*C14)+(B15)","v":7000000},{"$f":"SUM(C11:C15)","v":14},null,14,550000,448562.15662053821,null,null,14,{"$f":"EDATE($B$6,78)","v":"2031-03-01"},541441.97403244174,550000,541441.97,8558.0300000000007,4.032441764138639E-3]
[]
["Other Payment Considerations:",null,"Answer per Data Input Tab"]
["Termination Penalty (Section V, #26)",0,{"$f":"'Data Input'!B133","v":"N/A"}]
[]
["Total Other Payment Considerations",{"$f":"SUM(B19:B20)","v":0}]
["Total Undiscounted Cash Flows (Total Payments + Other Considerations)",{"$f":"B16+B21","v":7000000}]
[]
[null,null,"Important:"]
["Liability Net Present Value (calculated after Macros below run)",{"$f":"SUM(G:G)","v":6305895.6240324425},"Do not insert/delete/move"]
[null,null,"NPV must be cell B25"]
[null,null,"(macros depend on it)"]
["Asset Adjustments (from Asset Adj tab):","Asset Adj Amount"]
["Total Asset Adjustments during Current Year",{"$f":"'Asset Adj'!B124","v":1675480}]
["EXPECTED Future Asset Adjustments (if there is an amt here, s/b DIP)",{"$f":"'Asset Adj'!B125","v":505000},"DIP or Final?"]
["Total Asset Adjustment",{"$f":"SUM(B29:B30)","v":2180480},{"$f":"'Asset Adj'!B127","v":"Development in Progress"}]
[]
[]
["SBITA Asset Cost (calculated after Macros below run)",{"$f":"IF(C31=\"FINAL Adj Amount\",B25+B31,\"Not yet determined\")","v":"Not yet determined"}]
[]
["The Agency is not required to calculate the Present Value and/or enable Macros,"]
["but Steps 1 & 2 of the instructions below are REQUIRED to be completed."]
["After completing Steps 1 & 2, if desired to calculate the Present Value, complete Steps 3 - 8:"]
[]
["Note 1:  First make sure your Excel settings are correct -","See How to Enable Macros tab"]
["Note 2:  Please do not Insert, Delete, or Move any cells, columns or rows as this could cause the Macros to fail."]
["Note 3:  The Teal Cells in columns B & C are for manual input, and the Present Value Table will need to be adjusted in column F."]
["The Orange cells in columns B & C will automatically fill.  The Present Value and Amortization Tables will be generated with the"]
["Macro buttons.  Please do not make changes to the orange cells or anywhere within the Tables (except column F)."]
[]
["Step 1 - Fill out the \"Fixed Subscription Payment Schedule\" above (starting on row 10)."]
["a - To calculate the Fixed Subscription Payment:"]
["i -  Start with the fixed subscription periodic payments stated in the contract."]
["ii - In addition, add \"Fixed In-Substance Fees\" to the above amount.  \"Fixed In-Substance Fees\" are the Minimum Usage Costs of a variable"]
["usage fee.  For Example, if a subscription includes up to 5 gigs of data used for a set fee, but charges extra for every additional gig, the"]
["minimum fee for the first 5 gigs is the \"Fixed In-Substance Fee\", and the per gig fees above that minimum would be the variable fees."]
["iii - For payments that depend on an index or a rate (such as the Consumer Price Index or a market interest rate), the payment should be"]
["initially measured using the index or rate published as of the start of the subscription term."]
["iv - EXCLUDE any variable usage fees and/or support/maintenance service fees included in the payment (see #24 & 25 in Data Input tab)"]
["b - If payments escalate over time, list the beginning payment amount (col B) & # of payments to be paid at that amount (col C), then"]
["move to line #2 and list the next payment amount & # of payments at that amount, etc."]
["c - If an extension is deemed Reasonably Certain to be exercised, but the amount is listed as \"negotiable\", then use the fixed"]
["payment amount just prior to the date of extension for those unknown amounts."]
["d - If there is an Abated or Free Rent period (skipped payment) indicated in the SBITA contract,",null,"Desc of Lease Incentives"]
["indicate that with a $0 payment amount (col B) & the number of payments to be skipped (col C).",null,{"$f":"'Data Input'!B139","v":"N/A"}]
["Make sure to put these skipped payments in the correct order chronologically.  For example, if there"]
["is a skipped payment for payment 13, list the first 12 payments on the first line, then list line #2 as"]
["$0 (col B) and 1 (col C), then line #3 as the continuing payments after the skipped payment."]
["e - If a Bonus payment from the SBITA Vendor is included in the contract, subtract that amount from the payment closest to the proper"]
["chronological period (as described in d above).  This may cause that payment amount to be negative."]
["f - If payments are Less Often than Annually,indicate this in the Payment Schedule above by listing the 1st payment on the 1st row  & a 1 in"]
["col C, then the 2nd row should show how many years to be skipped in col C ($0 in col B), then the 3rd row will show the 2nd payment."]
["Repeat until all payments & all years are represented in the Payment Schdl (total in col C should tie to total yrs of subscription term in"]
["cell B4)."]
["g - Use the Teal box below to add any extra details, how payments change over time (For example, (a) Payment increases 5% every 10 yrs;"]
["(b) Payment recalculated every 5 yrs based on CPI, etc.), or describe payment frequency if Less Often than Annually."]
["Implementation Period not yet complete.  No Liability or RTU Asset until FY2025 when subscription period begins.  Only capitalize Development in Process for FY2024."]
[]
[]
["h - If there are not enough lines in the Payment Schedule above, use the table below to input the additional payment amounts, and the"]
["totals from the additional table will automatically be added to the Payment Schedule above.  Contact the GAAP Group if you need more"]
["than 25 lines."]
["i - Verify that the total # of payments in cell B4 is the same as the sum of col C (cell C16)."]
[]
["Additional Subscription Payment Lines (if needed)","Amount","# of Payments"]
["Payment Amount #5 & # of Payments at this amount",0,0]
["Payment Amount #6 & # of Payments at this amount",0,0]
["Payment Amount #7 & # of Payments at this amount",0,0]
["Payment Amount #8 & # of Payments at this amount",0,0]
["Payment Amount #9 & # of Payments at this amount",0,0]
["Payment Amount #10 & # of Payments at this amount",0,0]
["Payment Amount #11 & # of Payments at this amount",0,0]
["Payment Amount #12 & # of Payments at this amount",0,0]
["Payment Amount #13 & # of Payments at this amount",0,0]
["Payment Amount #14 & # of Payments at this amount",0,0]
["Payment Amount #15 & # of Payments at this amount",0,0]
["Payment Amount #16 & # of Payments at this amount",0,0]
["Payment Amount #17 & # of Payments at this amount",0,0]
["Payment Amount #18 & # of Payments at this amount",0,0]
["Payment Amount #19 & # of Payments at this amount",0,0]
["Payment Amount #20 & # of Payments at this amount",0,0]
["Payment Amount #21 & # of Payments at this amount",0,0]
["Payment Amount #22 & # of Payments at this amount",0,0]
["Payment Amount #23 & # of Payments at this amount",0,0]
["Payment Amount #24 & # of Payments at this amount",0,0]
["Payment Amount #25 & # of Payments at this amount",0,0]
["Total Add'l Subscription Payments (will automatically be added to the Schdl above)",{"$f":"(B81*C81)+(B82*C82)+(B83*C83)+(B84*C84)+(B85*C85)+(B86*C86)+(B87*C87)+(B88*C88)+(B89*C89)+(B90*C90)+(B91*C91)+(B92*C92)+(B93*C93)+(B94*C94)+(B95*C95)+(B96*C96)+(B97*C97)+(B98*C98)+(B99*C99)+(B100*C100)+(B101*C101)","v":0},{"$f":"SUM(C81:C101)","v":0}]
[]
[]
["Step 2 - Fill out the \"Other Payment Considerations\" section (starting on row 18) ONLY if instructed to do so on the Data Input tab"]
["The Termination Penalty line should only have an amount listed if a termination clause is deemed Reasonably Certain to be exercised"]
["based on decisions by the Agency (response from the Data Input tab is shown in col C) AND this termination will cause a Penalty to be due."]
[]
["Steps 3 - 8 are OPTIONAL (calculation of Present Value and Amortization Tables)"]
["Step 3 - Click the Macro button below to Generate the first 2 columns of the Present Value (PV) Table."]
[]
[]
["Step 4 - Using the Payment Schedule filled out in Steps 1 & 2, fill in the Payment Amounts into col F of the PV Table."]
["a - If there are 12 payments for the 1st payment amount, and 6 payments for the 2nd payment amount, list the 1st amount in the"]
["first 12 rows of the Table, then the 2nd amount for the next 6 rows, and do the same for the remaining payment amounts  listed"]
["in the Payment Schedule until all the payments are filled in on the Table."]
["b - Make sure not to miss any Skipped Payment periods.  If the Payment Schedule indicates the 13th payment is $0, then row 13 of the"]
["Table should be $0, same as the Payment Schedule."]
["c - If there are any amounts listed for \"Other Payment Considerations\", add it to the final payment.  For example, if the final"]
["payment is $20,000, and there is a Termination Penalty listed for $50,000, then the final payment in the Table should be $70,000."]
["d -  Check to make sure that the sum of all the payments entered into col F of the Table is the same as the Total Undiscounted Cash"]
["Flows in cell B22."]
[]
["Step 5 - Click the Macro button below to Calculate Net Present Value and Generate the PV and Amortization Tables."]
[]
[]
[]
["Step 6 - Check data for accuracy:"]
["a - Check the date of the final payment in the Amortization Table and compare to Subscription End Date in cell B8.  Make sure the final"]
["payment date is reasonable in comparison to the subscription End Date (within same month if payments are Monthly, within the final"]
["quarter if Quarterly, etc)."]
["b - If payments change (there are amounts in Payment Amount #2 + rows), then check the dates the amounts change in the"]
["Amort Table (col K & M) to make sure the payments change on the correct dates as per the SBITA Contract."]
["c - If 6a and 6b are BOTH correct, skip to Step 8 (Do NOT click the Start Over Macro Button)."]
["d - If 6a or 6b does not appear to be correct:"]
["i - Double-check the Instructions above (Steps 1 - 6), including the check for # of payments in 1i & check for Table payments in 4d."]
["ii - Double-check cells B2-B8 by reviewing the SBITA Contract.  These cells automatically filled based on answers in the Data Input"]
["tab.  Make any necessary corrections in the Data Input tab (NOT in cells B2-B8) - the corresponding question #s are referenced above."]
["iii - Double-Check the Payment Schedule and Other Payment Considerations sections.  Compare back to the SBITA contract to"]
["verify, and correct as necessary."]
["e - Once corrections have been made, click the Macro button below to Delete the PV & Amortization Tables."]
[]
[]
[]
["Step 7 - Repeat Steps 3-6 as needed until all checks (1i, 4d, 6a, 6b, and 6di-6diii) are correct."]
[]
["Step 8 - See Net Present Value calculated in cell B25 for the SBITA Liability and the SBITA Asset Cost in cell B34."]
["Also, see Present Value Table in columns E-G,"]
["and Amortization Table in columns J-P."]
["Note:  If Implementation Period is not yet complete, then only a Development in Process Asset will be recognized at this point (cell B34 will"]
["return a value of \"Not yet determined\" if implementation is still in process & will also be noted as \"Development in Process\" in cell C31)."]
["The SBITA Liability & SBITA Asset will not be recognized until the SBITA is Put Into Service/Go-Live Date.  If this is the case, please continue"]
["to track all Implementation Costs.  This info will be requested in the following year's Closing Package Activity Form."]
[]
["Please DO NOT add SBITA implementation costs into the AZ360 Fixed Assets System.  This will be done manually as the SBITA Asset"]
["includes not only the implementation costs, but also the Present Value of the Subscription Fixed Payments (Liability)."]

{"sheet":"SBITA 1 - PV Calc","index":6,"n_rows":156,"n_cols":3,"rows_kept":156,"cut":false,"hidden":false,"merged":[[59,2,62,2],[71,0,73,2]]}
["Present Value Calculations tab - SBITA # 1 (column C)","Contract #",{"$f":"'Data Input'!C35","v":0}]
["Periodic Interest Rate (Section VI, #28-29 from Data Input tab)",{"$f":"'Data Input'!C156","v":0}]
["Cash Flows at Beginning or End (Section IV, #21)",{"$f":"'Data Input'!C108","v":0},"Important:"]
["Number of payments (Section IV, #20)",{"$f":"'Data Input'!C105","v":0},"Do not insert/delete/move"]
["Frequency of payments (Section IV, #19)",{"$f":"'Data Input'!C101","v":0},"cells B2:B8"]
["Date of first payment (Section IV, #22)",{"$f":"'Data Input'!C112","v":"00:00:00"},"(macros depend on them)"]
["Date Put Into Service/Go-Live Date (#14 from Data Input tab)",{"$f":"'Data Input'!C87","v":"00:00:00"}]
["Subscription End Date including Extensions (Section IV, #17)",{"$f":"'Data Input'!C96","v":"1900-01-30"}]
[]
["Fixed Subscription Payment Schedule (Section V, #23 & see instructions below):","Amount","# of Payments"]
["Payment Amount #1 & # of Payments at this amount",0,0]
["Payment Amount #2 & # of Payments at this amount",0,0]
["Payment Amount #3 & # of Payments at this amount",0,0]
["Payment Amount #4 & # of Payments at this amount",0,0]
["Totals from add'l table below (if needed)",{"$f":"B102","v":0},{"$f":"C102","v":0}]
["Total Subscription Payments (sum of all payment amounts * # of payments)",{"$f":"(B11*C11)+(B12*C12)+(B13*C13)+(B14*C14)+(B15)","v":0},{"$f":"SUM(C11:C15)","v":0}]
[]
["Other Payment Considerations:",null,"Answer per Data Input Tab"]
["Termination Penalty (Section V, #26)",0,{"$f":"'Data Input'!C133","v":0}]
[]
["Total Other Payment Considerations",{"$f":"SUM(B19:B20)","v":0}]
["Total Undiscounted Cash Flows (Total Payments + Other Considerations)",{"$f":"B16+B21","v":0}]
[]
[null,null,"Important:"]
["Liability Net Present Value (calculated after Macros below run)",{"$f":"SUM(G:G)","v":0},"Do not insert/delete/move"]
[null,null,"NPV must be cell B25"]
[null,null,"(macros depend on it)"]
["Asset Adjustments (from Asset Adj tab):","Asset Adj Amount"]
["Total Asset Adjustments during Current Year",{"$f":"'Asset Adj'!C124","v":0}]
["EXPECTED Future Asset Adjustments (if there is an amt here, s/b DIP)",{"$f":"'Asset Adj'!C125","v":0},"DIP or Final?"]
["Total Asset Adjustment",{"$f":"SUM(B29:B30)","v":0},{"$f":"'Asset Adj'!C127","v":"FINAL Adj Amount"}]
[]
[]
["Software Subscription Asset Cost (calculated after Macros below run)",{"$f":"IF(C31=\"FINAL Adj Amount\",B25+B31,\"Not yet determined\")","v":0}]
[]
["The Agency is not required to calculate the Present Value and/or enable Macros,"]
["but Steps 1 & 2 of the instructions below are REQUIRED to be completed."]
["After completing Steps 1 & 2, if desired to calculate the Present Value, complete Steps 3 - 8:"]
[]
["Note 1:  First make sure your Excel settings are correct -","See How to Enable Macros tab"]
["Note 2:  Please do not Insert, Delete, or Move any cells, columns or rows as this could cause the Macros to fail."]
["Note 3:  The Teal Cells in columns B & C are for manual input, and the Present Value Table will need to be adjusted in column F."]
["The Orange cells in columns B & C will automatically fill.  The Present Value and Amortization Tables will be generated with the"]
["Macro buttons.  Please do not make changes to the orange cells or anywhere within the Tables (except column F)."]
[]
["Step 1 - Fill out the \"Fixed Subscription Payment Schedule\" above (starting on row 10)."]
["a - To calculate the Fixed Subscription Payment:"]
["i -  Start with the fixed subscription periodic payments stated in the contract."]
["ii - In addition, add \"Fixed In-Substance Fees\" to the above amount.  \"Fixed In-Substance Fees\" are the Minimum Usage Costs of a variable"]
["usage fee.  For Example, if a subscription includes up to 5 gigs of data used for a set fee, but charges extra for every additional gig, the"]
["minimum fee for the first 5 gigs is the \"Fixed In-Substance Fee\", and the per gig fees above that minimum would be the variable fees."]
["iii - For payments that depend on an index or a rate (such as the Consumer Price Index or a market interest rate), the payment should be"]
["initially measured using the index or rate published as of the start of the subscription term."]
["iv - EXCLUDE any variable usage fees and/or support/maintenance service fees included in the payment (see #24 & 25 in Data Input tab)"]
["b - If payments escalate over time, list the beginning payment amount (col B) & # of payments to be paid at that amount (col C), then"]
["move to line #2 and list the next payment amount & # of payments at that amount, etc."]
["c - If an extension is deemed Reasonably Certain to be exercised, but the amount is listed as \"negotiable\", then use the fixed"]
["payment amount just prior to the date of extension for those unknown amounts."]
["d - If there is an Abated or Free Rent period (skipped payment) indicated in the SBITA contract,",null,"Desc of Lease Incentives"]
["indicate that with a $0 payment amount (col B) & the number of payments to be skipped (col C).",null,{"$f":"'Data Input'!C139","v":0}]
["Make sure to put these skipped payments in the correct order chronologically.  For example, if there"]
["is a skipped payment for payment 13, list the first 12 payments on the first line, then list line #2 as"]
["$0 (col B) and 1 (col C), then line #3 as the continuing payments after the skipped payment."]
["e - If a Bonus payment from the SBITA Vendor is included in the contract, subtract that amount from the payment closest to the proper"]
["chronological period (as described in d above).  This may cause that payment amount to be negative."]
["f - If payments are Less Often than Annually,indicate this in the Payment Schedule above by listing the 1st payment on the 1st row  & a 1 in"]
["col C, then the 2nd row should show how many years to be skipped in col C ($0 in col B), then the 3rd row will show the 2nd payment."]
["Repeat until all payments & all years are represented in the Payment Schdl (total in col C should tie to total yrs of subscription term in"]
["cell B4)."]
["g - Use the Teal box below to add any extra details, how payments change over time (For example, (a) Payment increases 5% every 10 yrs;"]
["(b) Payment recalculated every 5 yrs based on CPI, etc.), or describe payment frequency if Less Often than Annually."]
[]
[]
[]
["h - If there are not enough lines in the Payment Schedule above, use the table below to input the additional payment amounts, and the"]
["totals from the additional table will automatically be added to the Payment Schedule above.  Contact the GAAP Group if you need more"]
["than 25 lines."]
["i - Verify that the total # of payments in cell B4 is the same as the sum of col C (cell C16)."]
[]
["Additional Subscription Payment Lines (if needed)","Amount","# of Payments"]
["Payment Amount #5 & # of Payments at this amount",0,0]
["Payment Amount #6 & # of Payments at this amount",0,0]
["Payment Amount #7 & # of Payments at this amount",0,0]
["Payment Amount #8 & # of Payments at this amount",0,0]
["Payment Amount #9 & # of Payments at this amount",0,0]
["Payment Amount #10 & # of Payments at this amount",0,0]
["Payment Amount #11 & # of Payments at this amount",0,0]
["Payment Amount #12 & # of Payments at this amount",0,0]
["Payment Amount #13 & # of Payments at this amount",0,0]
["Payment Amount #14 & # of Payments at this amount",0,0]
["Payment Amount #15 & # of Payments at this amount",0,0]
["Payment Amount #16 & # of Payments at this amount",0,0]
["Payment Amount #17 & # of Payments at this amount",0,0]
["Payment Amount #18 & # of Payments at this amount",0,0]
["Payment Amount #19 & # of Payments at this amount",0,0]
["Payment Amount #20 & # of Payments at this amount",0,0]
["Payment Amount #21 & # of Payments at this amount",0,0]
["Payment Amount #22 & # of Payments at this amount",0,0]
["Payment Amount #23 & # of Payments at this amount",0,0]
["Payment Amount #24 & # of Payments at this amount",0,0]
["Payment Amount #25 & # of Payments at this amount",0,0]
["Total Add'l Subscription Payments (will automatically be added to the Schdl above)",{"$f":"(B81*C81)+(B82*C82)+(B83*C83)+(B84*C84)+(B85*C85)+(B86*C86)+(B87*C87)+(B88*C88)+(B89*C89)+(B90*C90)+(B91*C91)+(B92*C92)+(B93*C93)+(B94*C94)+(B95*C95)+(B96*C96)+(B97*C97)+(B98*C98)+(B99*C99)+(B100*C100)+(B101*C101)","v":0},{"$f":"SUM(C81:C101)","v":0}]
[]
[]
["Step 2 - Fill out the \"Other Payment Considerations\" section (starting on row 18) ONLY if instructed to do so on the Data Input tab"]
["The Termination Penalty line should only have an amount listed if a termination clause is deemed Reasonably Certain to be exercised"]
["based on decisions by the Agency (response from the Data Input tab is shown in col C) AND this termination will cause a Penalty to be due."]
[]
["Steps 3 - 8 are OPTIONAL (calculation of Present Value and Amortization Tables)"]
["Step 3 - Click the Macro button below to Generate the first 2 columns of the Present Value (PV) Table."]
[]
[]
["Step 4 - Using the Payment Schedule filled out in Steps 1 & 2, fill in the Payment Amounts into col F of the PV Table."]
["a - If there are 12 payments for the 1st payment amount, and 6 payments for the 2nd payment amount, list the 1st amount in the"]
["first 12 rows of the Table, then the 2nd amount for the next 6 rows, and do the same for the remaining payment amounts  listed"]
["in the Payment Schedule until all the payments are filled in on the Table."]
["b - Make sure not to miss any Skipped Payment periods.  If the Payment Schedule indicates the 13th payment is $0, then row 13 of the"]
["Table should be $0, same as the Payment Schedule."]
["c - If there are any amounts listed for \"Other Payment Considerations\", add it to the final payment.  For example, if the final"]
["payment is $20,000, and there is a Termination Penalty listed for $50,000, then the final payment in the Table should be $70,000."]
["d -  Check to make sure that the sum of all the payments entered into col F of the Table is the same as the Total Undiscounted Cash"]
["Flows in cell B22."]
[]
["Step 5 - Click the Macro button below to Calculate Net Present Value and Generate the PV and Amortization Tables."]
[]
[]
[]
["Step 6 - Check data for accuracy:"]
["a - Check the date of the final payment in the Amortization Table and compare to Subscription End Date in cell B8.  Make sure the final"]
["payment date is reasonable in comparison to the subscription End Date (within same month if payments are Monthly, within the final"]
["quarter if Quarterly, etc)."]
["b - If payments change (there are amounts in Payment Amount #2 + rows), then check the dates the amounts change in the"]
["Amort Table (col K & M) to make sure the payments change on the correct dates as per the SBITA Contract."]
["c - If 6a and 6b are BOTH correct, skip to Step 8 (Do NOT click the Start Over Macro Button)."]
["d - If 6a or 6b does not appear to be correct:"]
["i - Double-check the Instructions above (Steps 1 - 6), including the check for # of payments in 1i & check for Table payments in 4d."]
["ii - Double-check cells B2-B8 by reviewing the SBITA Contract.  These cells automatically filled based on answers in the Data Input"]
["tab.  Make any necessary corrections in the Data Input tab (NOT in cells B2-B8) - the corresponding question #s are referenced above."]
["iii - Double-Check the Payment Schedule and Other Payment Considerations sections.  Compare back to the SBITA contract to"]
["verify, and correct as necessary."]
["e - Once corrections have been made, click the Macro button below to Delete the PV & Amortization Tables."]
[]
[]
[]
["Step 7 - Repeat Steps 3-6 as needed until all checks (1i, 4d, 6a, 6b, and 6di-6diii) are correct."]
[]
["Step 8 - See Net Present Value calculated in cell B25 for the SBITA Liability and the SBITA Asset Cost in cell B34."]
["Also, see Present Value Table in columns E-G,"]
["and Amortization Table in columns J-P."]
["Note:  If Implementation Period is not yet complete, then only a Development in Process Asset will be recognized at this point (cell B34 will"]
["return a value of \"Not yet determined\" if implementation is still in process & will also be noted as \"Development in Process\" in cell C31)."]
["The SBITA Liability & SBITA Asset will not be recognized until the SBITA is Put Into Service/Go-Live Date.  If this is the case, please continue"]
["to track all Implementation Costs.  This info will be requested in the following year's Closing Package Activity Form."]
[]
["Please DO NOT add SBITA implementation costs into the AZ360 Fixed Assets System.  This will be done manually as the SBITA Asset"]
["includes not only the implementation costs, but also the Present Value of the Subscription Fixed Payments (Liability)."]

{"sheet":"SBITA 2 - PV Calc","index":7,"n_rows":156,"n_cols":3,"rows_kept":156,"cut":false,"hidden":false,"merged":[[59,2,62,2],[71,0,73,2]]}
["Present Value Calculations tab - SBITA # 2 (column D)","Contract #",{"$f":"'Data Input'!D35","v":0}]
["Periodic Interest Rate (Section VI, #28-29 from Data Input tab)",{"$f":"'Data Input'!D156","v":0}]
["Cash Flows at Beginning or End (Section IV, #21)",{"$f":"'Data Input'!D108","v":0},"Important:"]
["Number of payments (Section IV, #20)",{"$f":"'Data Input'!D105","v":0},"Do not insert/delete/move"]
["Frequency of payments (Section IV, #19)",{"$f":"'Data Input'!D101","v":0},"cells B2:B8"]
["Date of first payment (Section IV, #22)",{"$f":"'Data Input'!D112","v":"00:00:00"},"(macros depend on them)"]
["Date Put Into Service/Go-Live Date (#14 from Data Input tab)",{"$f":"'Data Input'!D87","v":"00:00:00"}]
["Subscription End Date including Extensions (Section IV, #17)",{"$f":"'Data Input'!D96","v":"1900-01-30"}]
[]
["Fixed Subscription Payment Schedule (Section V, #23 & see instructions below):","Amount","# of Payments"]
["Payment Amount #1 & # of Payments at this amount",0,0]
["Payment Amount #2 & # of Payments at this amount",0,0]
["Payment Amount #3 & # of Payments at this amount",0,0]
["Payment Amount #4 & # of Payments at this amount",0,0]
["Totals from add'l table below (if needed)",{"$f":"B102","v":0},{"$f":"C102","v":0}]
["Total Subscription Payments (sum of all payment amounts * # of payments)",{"$f":"(B11*C11)+(B12*C12)+(B13*C13)+(B14*C14)+(B15)","v":0},{"$f":"SUM(C11:C15)","v":0}]
[]
["Other Payment Considerations:",null,"Answer per Data Input Tab"]
["Termination Penalty (Section V, #26)",0,{"$f":"'Data Input'!D133","v":0}]
[]
["Total Other Payment Considerations",{"$f":"SUM(B19:B20)","v":0}]
["Total Undiscounted Cash Flows (Total Payments + Other Considerations)",{"$f":"B16+B21","v":0}]
[]
[null,null,"Important:"]
["Liability Net Present Value (calculated after Macros below run)",{"$f":"SUM(G:G)","v":0},"Do not insert/delete/move"]
[null,null,"NPV must be cell B25"]
[null,null,"(macros depend on it)"]
["Asset Adjustments (from Asset Adj tab):","Asset Adj Amount"]
["Total Asset Adjustments during Current Year",{"$f":"'Asset Adj'!D124","v":0}]
["EXPECTED Future Asset Adjustments (if there is an amt here, s/b DIP)",{"$f":"'Asset Adj'!D125","v":0},"DIP or Final?"]
["Total Asset Adjustment",{"$f":"SUM(B29:B30)","v":0},{"$f":"'Asset Adj'!D127","v":"FINAL Adj Amount"}]
[]
[]
["Software Subscription Asset Cost (calculated after Macros below run)",{"$f":"IF(C31=\"FINAL Adj Amount\",B25+B31,\"Not yet determined\")","v":0}]
[]
["The Agency is not required to calculate the Present Value and/or enable Macros,"]
["but Steps 1 & 2 of the instructions below are REQUIRED to be completed."]
["After completing Steps 1 & 2, if desired to calculate the Present Value, complete Steps 3 - 8:"]
[]
["Note 1:  First make sure your Excel settings are correct -","See How to Enable Macros tab"]
["Note 2:  Please do not Insert, Delete, or Move any cells, columns or rows as this could cause the Macros to fail."]
["Note 3:  The Teal Cells in columns B & C are for manual input, and the Present Value Table will need to be adjusted in column F."]
["The Orange cells in columns B & C will automatically fill.  The Present Value and Amortization Tables will be generated with the"]
["Macro buttons.  Please do not make changes to the orange cells or anywhere within the Tables (except column F)."]
[]
["Step 1 - Fill out the \"Fixed Subscription Payment Schedule\" above (starting on row 10)."]
["a - To calculate the Fixed Subscription Payment:"]
["i -  Start with the fixed subscription periodic payments stated in the contract."]
["ii - In addition, add \"Fixed In-Substance Fees\" to the above amount.  \"Fixed In-Substance Fees\" are the Minimum Usage Costs of a variable"]
["usage fee.  For Example, if a subscription includes up to 5 gigs of data used for a set fee, but charges extra for every additional gig, the"]
["minimum fee for the first 5 gigs is the \"Fixed In-Substance Fee\", and the per gig fees above that minimum would be the variable fees."]
["iii - For payments that depend on an index or a rate (such as the Consumer Price Index or a market interest rate), the payment should be"]
["initially measured using the index or rate published as of the start of the subscription term."]
["iv - EXCLUDE any variable usage fees and/or support/maintenance service fees included in the payment (see #24 & 25 in Data Input tab)"]
["b - If payments escalate over time, list the beginning payment amount (col B) & # of payments to be paid at that amount (col C), then"]
["move to line #2 and list the next payment amount & # of payments at that amount, etc."]
["c - If an extension is deemed Reasonably Certain to be exercised, but the amount is listed as \"negotiable\", then use the fixed"]
["payment amount just prior to the date of extension for those unknown amounts."]
["d - If there is an Abated or Free Rent period (skipped payment) indicated in the SBITA contract,",null,"Desc of Lease Incentives"]
["indicate that with a $0 payment amount (col B) & the number of payments to be skipped (col C).",null,{"$f":"'Data Input'!D139","v":0}]
["Make sure to put these skipped payments in the correct order chronologically.  For example, if there"]
["is a skipped payment for payment 13, list the first 12 payments on the first line, then list line #2 as"]
["$0 (col B) and 1 (col C), then line #3 as the continuing payments after the skipped payment."]
["e - If a Bonus payment from the SBITA Vendor is included in the contract, subtract that amount from the payment closest to the proper"]
["chronological period (as described in d above).  This may cause that payment amount to be negative."]
["f - If payments are Less Often than Annually,indicate this in the Payment Schedule above by listing the 1st payment on the 1st row  & a 1 in"]
["col C, then the 2nd row should show how many years to be skipped in col C ($0 in col B), then the 3rd row will show the 2nd payment."]
["Repeat until all payments & all years are represented in the Payment Schdl (total in col C should tie to total yrs of subscription term in"]
["cell B4)."]
["g - Use the Teal box below to add any extra details, how payments change over time (For example, (a) Payment increases 5% every 10 yrs;"]
["(b) Payment recalculated every 5 yrs based on CPI, etc.), or describe payment frequency if Less Often than Annually."]
[]
[]
[]
["h - If there are not enough lines in the Payment Schedule above, use the table below to input the additional payment amounts, and the"]
["totals from the additional table will automatically be added to the Payment Schedule above.  Contact the GAAP Group if you need more"]
["than 25 lines."]
["i - Verify that the total # of payments in cell B4 is the same as the sum of col C (cell C16)."]
[]
["Additional Subscription Payment Lines (if needed)","Amount","# of Payments"]
["Payment Amount #5 & # of Payments at this amount",0,0]
["Payment Amount #6 & # of Payments at this amount",0,0]
["Payment Amount #7 & # of Payments at this amount",0,0]
["Payment Amount #8 & # of Payments at this amount",0,0]
["Payment Amount #9 & # of Payments at this amount",0,0]
["Payment Amount #10 & # of Payments at this amount",0,0]
["Payment Amount #11 & # of Payments at this amount",0,0]
["Payment Amount #12 & # of Payments at this amount",0,0]
["Payment Amount #13 & # of Payments at this amount",0,0]
["Payment Amount #14 & # of Payments at this amount",0,0]
["Payment Amount #15 & # of Payments at this amount",0,0]
["Payment Amount #16 & # of Payments at this amount",0,0]
["Payment Amount #17 & # of Payments at this amount",0,0]
["Payment Amount #18 & # of Payments at this amount",0,0]
["Payment Amount #19 & # of Payments at this amount",0,0]
["Payment Amount #20 & # of Payments at this amount",0,0]
["Payment Amount #21 & # of Payments at this amount",0,0]
["Payment Amount #22 & # of Payments at this amount",0,0]
["Payment Amount #23 & # of Payments at this amount",0,0]
["Payment Amount #24 & # of Payments at this amount",0,0]
["Payment Amount #25 & # of Payments at this amount",0,0]
["Total Add'l Subscription Payments (will automatically be added to the Schdl above)",{"$f":"(B81*C81)+(B82*C82)+(B83*C83)+(B84*C84)+(B85*C85)+(B86*C86)+(B87*C87)+(B88*C88)+(B89*C89)+(B90*C90)+(B91*C91)+(B92*C92)+(B93*C93)+(B94*C94)+(B95*C95)+(B96*C96)+(B97*C97)+(B98*C98)+(B99*C99)+(B100*C100)+(B101*C101)","v":0},{"$f":"SUM(C81:C101)","v":0}]
[]
[]
["Step 2 - Fill out the \"Other Payment Considerations\" section (starting on row 18) ONLY if instructed to do so on the Data Input tab"]
["The Termination Penalty line should only have an amount listed if a termination clause is deemed Reasonably Certain to be exercised"]
["based on decisions by the Agency (response from the Data Input tab is shown in col C) AND this termination will cause a Penalty to be due."]
[]
["Steps 3 - 8 are OPTIONAL (calculation of Present Value and Amortization Tables)"]
["Step 3 - Click the Macro button below to Generate the first 2 columns of the Present Value (PV) Table."]
[]
[]
["Step 4 - Using the Payment Schedule filled out in Steps 1 & 2, fill in the Payment Amounts into col F of the PV Table."]
["a - If there are 12 payments for the 1st payment amount, and 6 payments for the 2nd payment amount, list the 1st amount in the"]
["first 12 rows of the Table, then the 2nd amount for the next 6 rows, and do the same for the remaining payment amounts  listed"]
["in the Payment Schedule until all the payments are filled in on the Table."]
["b - Make sure not to miss any Skipped Payment periods.  If the Payment Schedule indicates the 13th payment is $0, then row 13 of the"]
["Table should be $0, same as the Payment Schedule."]
["c - If there are any amounts listed for \"Other Payment Considerations\", add it to the final payment.  For example, if the final"]
["payment is $20,000, and there is a Termination Penalty listed for $50,000, then the final payment in the Table should be $70,000."]
["d -  Check to make sure that the sum of all the payments entered into col F of the Table is the same as the Total Undiscounted Cash"]
["Flows in cell B22."]
[]
["Step 5 - Click the Macro button below to Calculate Net Present Value and Generate the PV and Amortization Tables."]
[]
[]
[]
["Step 6 - Check data for accuracy:"]
["a - Check the date of the final payment in the Amortization Table and compare to Subscription End Date in cell B8.  Make sure the final"]
["payment date is reasonable in comparison to the subscription End Date (within same month if payments are Monthly, within the final"]
["quarter if Quarterly, etc)."]
["b - If payments change (there are amounts in Payment Amount #2 + rows), then check the dates the amounts change in the"]
["Amort Table (col K & M) to make sure the payments change on the correct dates as per the SBITA Contract."]
["c - If 6a and 6b are BOTH correct, skip to Step 8 (Do NOT click the Start Over Macro Button)."]
["d - If 6a or 6b does not appear to be correct:"]
["i - Double-check the Instructions above (Steps 1 - 6), including the check for # of payments in 1i & check for Table payments in 4d."]
["ii - Double-check cells B2-B8 by reviewing the SBITA Contract.  These cells automatically filled based on answers in the Data Input"]
["tab.  Make any necessary corrections in the Data Input tab (NOT in cells B2-B8) - the corresponding question #s are referenced above."]
["iii - Double-Check the Payment Schedule and Other Payment Considerations sections.  Compare back to the SBITA contract to"]
["verify, and correct as necessary."]
["e - Once corrections have been made, click the Macro button below to Delete the PV & Amortization Tables."]
[]
[]
[]
["Step 7 - Repeat Steps 3-6 as needed until all checks (1i, 4d, 6a, 6b, and 6di-6diii) are correct."]
[]
["Step 8 - See Net Present Value calculated in cell B25 for the SBITA Liability and the SBITA Asset Cost in cell B34."]
["Also, see Present Value Table in columns E-G,"]
["and Amortization Table in columns J-P."]
["Note:  If Implementation Period is not yet complete, then only a Development in Process Asset will be recognized at this point (cell B34 will"]
["return a value of \"Not yet determined\" if implementation is still in process & will also be noted as \"Development in Process\" in cell C31)."]
["The SBITA Liability & SBITA Asset will not be recognized until the SBITA is Put Into Service/Go-Live Date.  If this is the case, please continue"]
["to track all Implementation Costs.  This info will be requested in the following year's Closing Package Activity Form."]
[]
["Please DO NOT add SBITA implementation costs into the AZ360 Fixed Assets System.  This will be done manually as the SBITA Asset"]
["includes not only the implementation costs, but also the Present Value of the Subscription Fixed Payments (Liability)."]

{"sheet":"SBITA 3 - PV Calc","index":8,"n_rows":156,"n_cols":3,"rows_kept":156,"cut":false,"hidden":false,"merged":[[59,2,62,2],[71,0,73,2]]}
["Present Value Calculations tab - SBITA # 3 (column E)","Contract #",{"$f":"'Data Input'!E35","v":0}]
["Periodic Interest Rate (Section VI, #28-29 from Data Input tab)",{"$f":"'Data Input'!E156","v":0}]
["Cash Flows at Beginning or End (Section IV, #21)",{"$f":"'Data Input'!E108","v":0},"Important:"]
["Number of payments (Section IV, #20)",{"$f":"'Data Input'!E105","v":0},"Do not insert/delete/move"]
["Frequency of payments (Section IV, #19)",{"$f":"'Data Input'!E101","v":0},"cells B2:B8"]
["Date of first payment (Section IV, #22)",{"$f":"'Data Input'!E112","v":"00:00:00"},"(macros depend on them)"]
["Date Put Into Service/Go-Live Date (#14 from Data Input tab)",{"$f":"'Data Input'!E87","v":"00:00:00"}]
["Subscription End Date including Extensions (Section IV, #17)",{"$f":"'Data Input'!E96","v":"1900-01-30"}]
[]
["Fixed Subscription Payment Schedule (Section V, #23 & see instructions below):","Amount","# of Payments"]
["Payment Amount #1 & # of Payments at this amount",0,0]
["Payment Amount #2 & # of Payments at this amount",0,0]
["Payment Amount #3 & # of Payments at this amount",0,0]
["Payment Amount #4 & # of Payments at this amount",0,0]
["Totals from add'l table below (if needed)",{"$f":"B102","v":0},{"$f":"C102","v":0}]
["Total Subscription Payments (sum of all payment amounts * # of payments)",{"$f":"(B11*C11)+(B12*C12)+(B13*C13)+(B14*C14)+(B15)","v":0},{"$f":"SUM(C11:C15)","v":0}]
[]
["Other Payment Considerations:",null,"Answer per Data Input Tab"]
["Termination Penalty (Section V, #26)",0,{"$f":"'Data Input'!E133","v":0}]
[]
["Total Other Payment Considerations",{"$f":"SUM(B19:B20)","v":0}]
["Total Undiscounted Cash Flows (Total Payments + Other Considerations)",{"$f":"B16+B21","v":0}]
[]
[null,null,"Important:"]
["Liability Net Present Value (calculated after Macros below run)",{"$f":"SUM(G:G)","v":0},"Do not insert/delete/move"]
[null,null,"NPV must be cell B25"]
[null,null,"(macros depend on it)"]
["Asset Adjustments (from Asset Adj tab):","Asset Adj Amount"]
["Total Asset Adjustments during Current Year",{"$f":"'Asset Adj'!E124","v":0}]
["EXPECTED Future Asset Adjustments (if there is an amt here, s/b DIP)",{"$f":"'Asset Adj'!E125","v":0},"DIP or Final?"]
["Total Asset Adjustment",{"$f":"SUM(B29:B30)","v":0},{"$f":"'Asset Adj'!E127","v":"FINAL Adj Amount"}]
[]
[]
["Software Subscription Asset Cost (calculated after Macros below run)",{"$f":"IF(C31=\"FINAL Adj Amount\",B25+B31,\"Not yet determined\")","v":0}]
[]
["The Agency is not required to calculate the Present Value and/or enable Macros,"]
["but Steps 1 & 2 of the instructions below are REQUIRED to be completed."]
["After completing Steps 1 & 2, if desired to calculate the Present Value, complete Steps 3 - 8:"]
[]
["Note 1:  First make sure your Excel settings are correct -","See How to Enable Macros tab"]
["Note 2:  Please do not Insert, Delete, or Move any cells, columns or rows as this could cause the Macros to fail."]
["Note 3:  The Teal Cells in columns B & C are for manual input, and the Present Value Table will need to be adjusted in column F."]
["The Orange cells in columns B & C will automatically fill.  The Present Value and Amortization Tables will be generated with the"]
["Macro buttons.  Please do not make changes to the orange cells or anywhere within the Tables (except column F)."]
[]
["Step 1 - Fill out the \"Fixed Subscription Payment Schedule\" above (starting on row 10)."]
["a - To calculate the Fixed Subscription Payment:"]
["i -  Start with the fixed subscription periodic payments stated in the contract."]
["ii - In addition, add \"Fixed In-Substance Fees\" to the above amount.  \"Fixed In-Substance Fees\" are the Minimum Usage Costs of a variable"]
["usage fee.  For Example, if a subscription includes up to 5 gigs of data used for a set fee, but charges extra for every additional gig, the"]
["minimum fee for the first 5 gigs is the \"Fixed In-Substance Fee\", and the per gig fees above that minimum would be the variable fees."]
["iii - For payments that depend on an index or a rate (such as the Consumer Price Index or a market interest rate), the payment should be"]
["initially measured using the index or rate published as of the start of the subscription term."]
["iv - EXCLUDE any variable usage fees and/or support/maintenance service fees included in the payment (see #24 & 25 in Data Input tab)"]
["b - If payments escalate over time, list the beginning payment amount (col B) & # of payments to be paid at that amount (col C), then"]
["move to line #2 and list the next payment amount & # of payments at that amount, etc."]
["c - If an extension is deemed Reasonably Certain to be exercised, but the amount is listed as \"negotiable\", then use the fixed"]
["payment amount just prior to the date of extension for those unknown amounts."]
["d - If there is an Abated or Free Rent period (skipped payment) indicated in the SBITA contract,",null,"Desc of Lease Incentives"]
["indicate that with a $0 payment amount (col B) & the number of payments to be skipped (col C).",null,{"$f":"'Data Input'!E139","v":0}]
["Make sure to put these skipped payments in the correct order chronologically.  For example, if there"]
["is a skipped payment for payment 13, list the first 12 payments on the first line, then list line #2 as"]
["$0 (col B) and 1 (col C), then line #3 as the continuing payments after the skipped payment."]
["e - If a Bonus payment from the SBITA Vendor is included in the contract, subtract that amount from the payment closest to the proper"]
["chronological period (as described in d above).  This may cause that payment amount to be negative."]
["f - If payments are Less Often than Annually,indicate this in the Payment Schedule above by listing the 1st payment on the 1st row  & a 1 in"]
["col C, then the 2nd row should show how many years to be skipped in col C ($0 in col B), then the 3rd row will show the 2nd payment."]
["Repeat until all payments & all years are represented in the Payment Schdl (total in col C should tie to total yrs of subscription term in"]
["cell B4)."]
["g - Use the Teal box below to add any extra details, how payments change over time (For example, (a) Payment increases 5% every 10 yrs;"]
["(b) Payment recalculated every 5 yrs based on CPI, etc.), or describe payment frequency if Less Often than Annually."]
[]
[]
[]
["h - If there are not enough lines in the Payment Schedule above, use the table below to input the additional payment amounts, and the"]
["totals from the additional table will automatically be added to the Payment Schedule above.  Contact the GAAP Group if you need more"]
["than 25 lines."]
["i - Verify that the total # of payments in cell B4 is the same as the sum of col C (cell C16)."]
[]
["Additional Subscription Payment Lines (if needed)","Amount","# of Payments"]
["Payment Amount #5 & # of Payments at this amount",0,0]
["Payment Amount #6 & # of Payments at this amount",0,0]
["Payment Amount #7 & # of Payments at this amount",0,0]
["Payment Amount #8 & # of Payments at this amount",0,0]
["Payment Amount #9 & # of Payments at this amount",0,0]
["Payment Amount #10 & # of Payments at this amount",0,0]
["Payment Amount #11 & # of Payments at this amount",0,0]
["Payment Amount #12 & # of Payments at this amount",0,0]
["Payment Amount #13 & # of Payments at this amount",0,0]
["Payment Amount #14 & # of Payments at this amount",0,0]
["Payment Amount #15 & # of Payments at this amount",0,0]
["Payment Amount #16 & # of Payments at this amount",0,0]
["Payment Amount #17 & # of Payments at this amount",0,0]
["Payment Amount #18 & # of Payments at this amount",0,0]
["Payment Amount #19 & # of Payments at this amount",0,0]
["Payment Amount #20 & # of Payments at this amount",0,0]
["Payment Amount #21 & # of Payments at this amount",0,0]
["Payment Amount #22 & # of Payments at this amount",0,0]
["Payment Amount #23 & # of Payments at this amount",0,0]
["Payment Amount #24 & # of Payments at this amount",0,0]
["Payment Amount #25 & # of Payments at this amount",0,0]
["Total Add'l Subscription Payments (will automatically be added to the Schdl above)",{"$f":"(B81*C81)+(B82*C82)+(B83*C83)+(B84*C84)+(B85*C85)+(B86*C86)+(B87*C87)+(B88*C88)+(B89*C89)+(B90*C90)+(B91*C91)+(B92*C92)+(B93*C93)+(B94*C94)+(B95*C95)+(B96*C96)+(B97*C97)+(B98*C98)+(B99*C99)+(B100*C100)+(B101*C101)","v":0},{"$f":"SUM(C81:C101)","v":0}]
[]
[]
["Step 2 - Fill out the \"Other Payment Considerations\" section (starting on row 18) ONLY if instructed to do so on the Data Input tab"]
["The Termination Penalty line should only have an amount listed if a termination clause is deemed Reasonably Certain to be exercised"]
["based on decisions by the Agency (response from the Data Input tab is shown in col C) AND this termination will cause a Penalty to be due."]
[]
["Steps 3 - 8 are OPTIONAL (calculation of Present Value and Amortization Tables)"]
["Step 3 - Click the Macro button below to Generate the first 2 columns of the Present Value (PV) Table."]
[]
[]
["Step 4 - Using the Payment Schedule filled out in Steps 1 & 2, fill in the Payment Amounts into col F of the PV Table."]
["a - If there are 12 payments for the 1st payment amount, and 6 payments for the 2nd payment amount, list the 1st amount in the"]
["first 12 rows of the Table, then the 2nd amount for the next 6 rows, and do the same for the remaining payment amounts  listed"]
["in the Payment Schedule until all the payments are filled in on the Table."]
["b - Make sure not to miss any Skipped Payment periods.  If the Payment Schedule indicates the 13th payment is $0, then row 13 of the"]
["Table should be $0, same as the Payment Schedule."]
["c - If there are any amounts listed for \"Other Payment Considerations\", add it to the final payment.  For example, if the final"]
["payment is $20,000, and there is a Termination Penalty listed for $50,000, then the final payment in the Table should be $70,000."]
["d -  Check to make sure that the sum of all the payments entered into col F of the Table is the same as the Total Undiscounted Cash"]
["Flows in cell B22."]
[]
["Step 5 - Click the Macro button below to Calculate Net Present Value and Generate the PV and Amortization Tables."]
[]
[]
[]
["Step 6 - Check data for accuracy:"]
["a - Check the date of the final payment in the Amortization Table and compare to Subscription End Date in cell B8.  Make sure the final"]
["payment date is reasonable in comparison to the subscription End Date (within same month if payments are Monthly, within the final"]
["quarter if Quarterly, etc)."]
["b - If payments change (there are amounts in Payment Amount #2 + rows), then check the dates the amounts change in the"]
["Amort Table (col K & M) to make sure the payments change on the correct dates as per the SBITA Contract."]
["c - If 6a and 6b are BOTH correct, skip to Step 8 (Do NOT click the Start Over Macro Button)."]
["d - If 6a or 6b does not appear to be correct:"]
["i - Double-check the Instructions above (Steps 1 - 6), including the check for # of payments in 1i & check for Table payments in 4d."]
["ii - Double-check cells B2-B8 by reviewing the SBITA Contract.  These cells automatically filled based on answers in the Data Input"]
["tab.  Make any necessary corrections in the Data Input tab (NOT in cells B2-B8) - the corresponding question #s are referenced above."]
["iii - Double-Check the Payment Schedule and Other Payment Considerations sections.  Compare back to the SBITA contract to"]
["verify, and correct as necessary."]
["e - Once corrections have been made, click the Macro button below to Delete the PV & Amortization Tables."]
[]
[]
[]
["Step 7 - Repeat Steps 3-6 as needed until all checks (1i, 4d, 6a, 6b, and 6di-6diii) are correct."]
[]
["Step 8 - See Net Present Value calculated in cell B25 for the SBITA Liability and the SBITA Asset Cost in cell B34."]
["Also, see Present Value Table in columns E-G,"]
["and Amortization Table in columns J-P."]
["Note:  If Implementation Period is not yet complete, then only a Development in Process Asset will be recognized at this point (cell B34 will"]
["return a value of \"Not yet determined\" if implementation is still in process & will also be noted as \"Development in Process\" in cell C31)."]
["The SBITA Liability & SBITA Asset will not be recognized until the SBITA is Put Into Service/Go-Live Date.  If this is the case, please continue"]
["to track all Implementation Costs.  This info will be requested in the following year's Closing Package Activity Form."]
[]
["Please DO NOT add SBITA implementation costs into the AZ360 Fixed Assets System.  This will be done manually as the SBITA Asset"]
["includes not only the implementation costs, but also the Present Value of the Subscription Fixed Payments (Liability)."]

{"sheet":"SBITA 4 - PV Calc","index":9,"n_rows":156,"n_cols":3,"rows_kept":156,"cut":false,"hidden":false,"merged":[[59,2,62,2],[71,0,73,2]]}
["Present Value Calculations tab - SBITA # 4 (column F)","Contract #",{"$f":"'Data Input'!F35","v":0}]
["Periodic Interest Rate (Section VI, #28-29 from Data Input tab)",{"$f":"'Data Input'!F156","v":0}]
["Cash Flows at Beginning or End (Section IV, #21)",{"$f":"'Data Input'!F108","v":0},"Important:"]
["Number of payments (Section IV, #20)",{"$f":"'Data Input'!F105","v":0},"Do not insert/delete/move"]
["Frequency of payments (Section IV, #19)",{"$f":"'Data Input'!F101","v":0},"cells B2:B8"]
["Date of first payment (Section IV, #22)",{"$f":"'Data Input'!F112","v":"00:00:00"},"(macros depend on them)"]
["Date Put Into Service/Go-Live Date (#14 from Data Input tab)",{"$f":"'Data Input'!F87","v":"00:00:00"}]
["Subscription End Date including Extensions (Section IV, #17)",{"$f":"'Data Input'!F96","v":"1900-01-30"}]
[]
["Fixed Subscription Payment Schedule (Section V, #23 & see instructions below):","Amount","# of Payments"]
["Payment Amount #1 & # of Payments at this amount",0,0]
["Payment Amount #2 & # of Payments at this amount",0,0]
["Payment Amount #3 & # of Payments at this amount",0,0]
["Payment Amount #4 & # of Payments at this amount",0,0]
["Totals from add'l table below (if needed)",{"$f":"B102","v":0},{"$f":"C102","v":0}]
["Total Subscription Payments (sum of all payment amounts * # of payments)",{"$f":"(B11*C11)+(B12*C12)+(B13*C13)+(B14*C14)+(B15)","v":0},{"$f":"SUM(C11:C15)","v":0}]
[]
["Other Payment Considerations:",null,"Answer per Data Input Tab"]
["Termination Penalty (Section V, #26)",0,{"$f":"'Data Input'!F133","v":0}]
[]
["Total Other Payment Considerations",{"$f":"SUM(B19:B20)","v":0}]
["Total Undiscounted Cash Flows (Total Payments + Other Considerations)",{"$f":"B16+B21","v":0}]
[]
[null,null,"Important:"]
["Liability Net Present Value (calculated after Macros below run)",{"$f":"SUM(G:G)","v":0},"Do not insert/delete/move"]
[null,null,"NPV must be cell B25"]
[null,null,"(macros depend on it)"]
["Asset Adjustments (from Asset Adj tab):","Asset Adj Amount"]
["Total Asset Adjustments during Current Year",{"$f":"'Asset Adj'!F124","v":0}]
["EXPECTED Future Asset Adjustments (if there is an amt here, s/b DIP)",{"$f":"'Asset Adj'!F125","v":0},"DIP or Final?"]
["Total Asset Adjustment",{"$f":"SUM(B29:B30)","v":0},{"$f":"'Asset Adj'!F127","v":"FINAL Adj Amount"}]
[]
[]
["Software Subscription Asset Cost (calculated after Macros below run)",{"$f":"IF(C31=\"FINAL Adj Amount\",B25+B31,\"Not yet determined\")","v":0}]
[]
["The Agency is not required to calculate the Present Value and/or enable Macros,"]
["but Steps 1 & 2 of the instructions below are REQUIRED to be completed."]
["After completing Steps 1 & 2, if desired to calculate the Present Value, complete Steps 3 - 8:"]
[]
["Note 1:  First make sure your Excel settings are correct -","See How to Enable Macros tab"]
["Note 2:  Please do not Insert, Delete, or Move any cells, columns or rows as this could cause the Macros to fail."]
["Note 3:  The Teal Cells in columns B & C are for manual input, and the Present Value Table will need to be adjusted in column F."]
["The Orange cells in columns B & C will automatically fill.  The Present Value and Amortization Tables will be generated with the"]
["Macro buttons.  Please do not make changes to the orange cells or anywhere within the Tables (except column F)."]
[]
["Step 1 - Fill out the \"Fixed Subscription Payment Schedule\" above (starting on row 10)."]
["a - To calculate the Fixed Subscription Payment:"]
["i -  Start with the fixed subscription periodic payments stated in the contract."]
["ii - In addition, add \"Fixed In-Substance Fees\" to the above amount.  \"Fixed In-Substance Fees\" are the Minimum Usage Costs of a variable"]
["usage fee.  For Example, if a subscription includes up to 5 gigs of data used for a set fee, but charges extra for every additional gig, the"]
["minimum fee for the first 5 gigs is the \"Fixed In-Substance Fee\", and the per gig fees above that minimum would be the variable fees."]
["iii - For payments that depend on an index or a rate (such as the Consumer Price Index or a market interest rate), the payment should be"]
["initially measured using the index or rate published as of the start of the subscription term."]
["iv - EXCLUDE any variable usage fees and/or support/maintenance service fees included in the payment (see #24 & 25 in Data Input tab)"]
["b - If payments escalate over time, list the beginning payment amount (col B) & # of payments to be paid at that amount (col C), then"]
["move to line #2 and list the next payment amount & # of payments at that amount, etc."]
["c - If an extension is deemed Reasonably Certain to be exercised, but the amount is listed as \"negotiable\", then use the fixed"]
["payment amount just prior to the date of extension for those unknown amounts."]
["d - If there is an Abated or Free Rent period (skipped payment) indicated in the SBITA contract,",null,"Desc of Lease Incentives"]
["indicate that with a $0 payment amount (col B) & the number of payments to be skipped (col C).",null,{"$f":"'Data Input'!F139","v":0}]
["Make sure to put these skipped payments in the correct order chronologically.  For example, if there"]
["is a skipped payment for payment 13, list the first 12 payments on the first line, then list line #2 as"]
["$0 (col B) and 1 (col C), then line #3 as the continuing payments after the skipped payment."]
["e - If a Bonus payment from the SBITA Vendor is included in the contract, subtract that amount from the payment closest to the proper"]
["chronological period (as described in d above).  This may cause that payment amount to be negative."]
["f - If payments are Less Often than Annually,indicate this in the Payment Schedule above by listing the 1st payment on the 1st row  & a 1 in"]
["col C, then the 2nd row should show how many years to be skipped in col C ($0 in col B), then the 3rd row will show the 2nd payment."]
["Repeat until all payments & all years are represented in the Payment Schdl (total in col C should tie to total yrs of subscription term in"]
["cell B4)."]
["g - Use the Teal box below to add any extra details, how payments change over time (For example, (a) Payment increases 5% every 10 yrs;"]
["(b) Payment recalculated every 5 yrs based on CPI, etc.), or describe payment frequency if Less Often than Annually."]
[]
[]
[]
["h - If there are not enough lines in the Payment Schedule above, use the table below to input the additional payment amounts, and the"]
["totals from the additional table will automatically be added to the Payment Schedule above.  Contact the GAAP Group if you need more"]
["than 25 lines."]
["i - Verify that the total # of payments in cell B4 is the same as the sum of col C (cell C16)."]
[]
["Additional Subscription Payment Lines (if needed)","Amount","# of Payments"]
["Payment Amount #5 & # of Payments at this amount",0,0]
["Payment Amount #6 & # of Payments at this amount",0,0]
["Payment Amount #7 & # of Payments at this amount",0,0]
["Payment Amount #8 & # of Payments at this amount",0,0]
["Payment Amount #9 & # of Payments at this amount",0,0]
["Payment Amount #10 & # of Payments at this amount",0,0]
["Payment Amount #11 & # of Payments at this amount",0,0]
["Payment Amount #12 & # of Payments at this amount",0,0]
["Payment Amount #13 & # of Payments at this amount",0,0]
["Payment Amount #14 & # of Payments at this amount",0,0]
["Payment Amount #15 & # of Payments at this amount",0,0]
["Payment Amount #16 & # of Payments at this amount",0,0]
["Payment Amount #17 & # of Payments at this amount",0,0]
["Payment Amount #18 & # of Payments at this amount",0,0]
["Payment Amount #19 & # of Payments at this amount",0,0]
["Payment Amount #20 & # of Payments at this amount",0,0]
["Payment Amount #21 & # of Payments at this amount",0,0]
["Payment Amount #22 & # of Payments at this amount",0,0]
["Payment Amount #23 & # of Payments at this amount",0,0]
["Payment Amount #24 & # of Payments at this amount",0,0]
["Payment Amount #25 & # of Payments at this amount",0,0]
["Total Add'l Subscription Payments (will automatically be added to the Schdl above)",{"$f":"(B81*C81)+(B82*C82)+(B83*C83)+(B84*C84)+(B85*C85)+(B86*C86)+(B87*C87)+(B88*C88)+(B89*C89)+(B90*C90)+(B91*C91)+(B92*C92)+(B93*C93)+(B94*C94)+(B95*C95)+(B96*C96)+(B97*C97)+(B98*C98)+(B99*C99)+(B100*C100)+(B101*C101)","v":0},{"$f":"SUM(C81:C101)","v":0}]
[]
[]
["Step 2 - Fill out the \"Other Payment Considerations\" section (starting on row 18) ONLY if instructed to do so on the Data Input tab"]
["The Termination Penalty line should only have an amount listed if a termination clause is deemed Reasonably Certain to be exercised"]
["based on decisions by the Agency (response from the Data Input tab is shown in col C) AND this termination will cause a Penalty to be due."]
[]
["Steps 3 - 8 are OPTIONAL (calculation of Present Value and Amortization Tables)"]
["Step 3 - Click the Macro button below to Generate the first 2 columns of the Present Value (PV) Table."]
[]
[]
["Step 4 - Using the Payment Schedule filled out in Steps 1 & 2, fill in the Payment Amounts into col F of the PV Table."]
["a - If there are 12 payments for the 1st payment amount, and 6 payments for the 2nd payment amount, list the 1st amount in the"]
["first 12 rows of the Table, then the 2nd amount for the next 6 rows, and do the same for the remaining payment amounts  listed"]
["in the Payment Schedule until all the payments are filled in on the Table."]
["b - Make sure not to miss any Skipped Payment periods.  If the Payment Schedule indicates the 13th payment is $0, then row 13 of the"]
["Table should be $0, same as the Payment Schedule."]
["c - If there are any amounts listed for \"Other Payment Considerations\", add it to the final payment.  For example, if the final"]
["payment is $20,000, and there is a Termination Penalty listed for $50,000, then the final payment in the Table should be $70,000."]
["d -  Check to make sure that the sum of all the payments entered into col F of the Table is the same as the Total Undiscounted Cash"]
["Flows in cell B22."]
[]
["Step 5 - Click the Macro button below to Calculate Net Present Value and Generate the PV and Amortization Tables."]
[]
[]
[]
["Step 6 - Check data for accuracy:"]
["a - Check the date of the final payment in the Amortization Table and compare to Subscription End Date in cell B8.  Make sure the final"]
["payment date is reasonable in comparison to the subscription End Date (within same month if payments are Monthly, within the final"]
["quarter if Quarterly, etc)."]
["b - If payments change (there are amounts in Payment Amount #2 + rows), then check the dates the amounts change in the"]
["Amort Table (col K & M) to make sure the payments change on the correct dates as per the SBITA Contract."]
["c - If 6a and 6b are BOTH correct, skip to Step 8 (Do NOT click the Start Over Macro Button)."]
["d - If 6a or 6b does not appear to be correct:"]
["i - Double-check the Instructions above (Steps 1 - 6), including the check for # of payments in 1i & check for Table payments in 4d."]
["ii - Double-check cells B2-B8 by reviewing the SBITA Contract.  These cells automatically filled based on answers in the Data Input"]
["tab.  Make any necessary corrections in the Data Input tab (NOT in cells B2-B8) - the corresponding question #s are referenced above."]
["iii - Double-Check the Payment Schedule and Other Payment Considerations sections.  Compare back to the SBITA contract to"]
["verify, and correct as necessary."]
["e - Once corrections have been made, click the Macro button below to Delete the PV & Amortization Tables."]
[]
[]
[]
["Step 7 - Repeat Steps 3-6 as needed until all checks (1i, 4d, 6a, 6b, and 6di-6diii) are correct."]
[]
["Step 8 - See Net Present Value calculated in cell B25 for the SBITA Liability and the SBITA Asset Cost in cell B34."]
["Also, see Present Value Table in columns E-G,"]
["and Amortization Table in columns J-P."]
["Note:  If Implementation Period is not yet complete, then only a Development in Process Asset will be recognized at this point (cell B34 will"]
["return a value of \"Not yet determined\" if implementation is still in process & will also be noted as \"Development in Process\" in cell C31)."]
["The SBITA Liability & SBITA Asset will not be recognized until the SBITA is Put Into Service/Go-Live Date.  If this is the case, please continue"]
["to track all Implementation Costs.  This info will be requested in the following year's Closing Package Activity Form."]
[]
["Please DO NOT add SBITA implementation costs into the AZ360 Fixed Assets System.  This will be done manually as the SBITA Asset"]
["includes not only the implementation costs, but also the Present Value of the Subscription Fixed Payments (Liability)."]

{"sheet":"SBITA 5 - PV Calc","index":10,"n_rows":156,"n_cols":3,"rows_kept":156,"cut":false,"hidden":false,"merged":[[59,2,62,2],[71,0,73,2]]}
["Present Value Calculations tab - SBITA # 5 (column G)","Contract #",{"$f":"'Data Input'!G35","v":0}]
["Periodic Interest Rate (Section VI, #28-29 from Data Input tab)",{"$f":"'Data Input'!G156","v":0}]
["Cash Flows at Beginning or End (Section IV, #21)",{"$f":"'Data Input'!G108","v":0},"Important:"]
["Number of payments (Section IV, #20)",{"$f":"'Data Input'!G105","v":0},"Do not insert/delete/move"]
["Frequency of payments (Section IV, #19)",{"$f":"'Data Input'!G101","v":0},"cells B2:B8"]
["Date of first payment (Section IV, #22)",{"$f":"'Data Input'!G112","v":"00:00:00"},"(macros depend on them)"]
["Date Put Into Service/Go-Live Date (#14 from Data Input tab)",{"$f":"'Data Input'!G87","v":"00:00:00"}]
["Subscription End Date including Extensions (Section IV, #17)",{"$f":"'Data Input'!G96","v":"1900-01-30"}]
[]
["Fixed Subscription Payment Schedule (Section V, #23 & see instructions below):","Amount","# of Payments"]
["Payment Amount #1 & # of Payments at this amount",0,0]
["Payment Amount #2 & # of Payments at this amount",0,0]
["Payment Amount #3 & # of Payments at this amount",0,0]
["Payment Amount #4 & # of Payments at this amount",0,0]
["Totals from add'l table below (if needed)",{"$f":"B102","v":0},{"$f":"C102","v":0}]
["Total Subscription Payments (sum of all payment amounts * # of payments)",{"$f":"(B11*C11)+(B12*C12)+(B13*C13)+(B14*C14)+(B15)","v":0},{"$f":"SUM(C11:C15)","v":0}]
[]
["Other Payment Considerations:",null,"Answer per Data Input Tab"]
["Termination Penalty (Section V, #26)",0,{"$f":"'Data Input'!G133","v":0}]
[]
["Total Other Payment Considerations",{"$f":"SUM(B19:B20)","v":0}]
["Total Undiscounted Cash Flows (Total Payments + Other Considerations)",{"$f":"B16+B21","v":0}]
[]
[null,null,"Important:"]
["Liability Net Present Value (calculated after Macros below run)",{"$f":"SUM(G:G)","v":0},"Do not insert/delete/move"]
[null,null,"NPV must be cell B25"]
[null,null,"(macros depend on it)"]
["Asset Adjustments (from Asset Adj tab):","Asset Adj Amount"]
["Total Asset Adjustments during Current Year",{"$f":"'Asset Adj'!G124","v":0}]
["EXPECTED Future Asset Adjustments (if there is an amt here, s/b DIP)",{"$f":"'Asset Adj'!G125","v":0},"DIP or Final?"]
["Total Asset Adjustment",{"$f":"SUM(B29:B30)","v":0},{"$f":"'Asset Adj'!G127","v":"FINAL Adj Amount"}]
[]
[]
["Software Subscription Asset Cost (calculated after Macros below run)",{"$f":"IF(C31=\"FINAL Adj Amount\",B25+B31,\"Not yet determined\")","v":0}]
[]
["The Agency is not required to calculate the Present Value and/or enable Macros,"]
["but Steps 1 & 2 of the instructions below are REQUIRED to be completed."]
["After completing Steps 1 & 2, if desired to calculate the Present Value, complete Steps 3 - 8:"]
[]
["Note 1:  First make sure your Excel settings are correct -","See How to Enable Macros tab"]
["Note 2:  Please do not Insert, Delete, or Move any cells, columns or rows as this could cause the Macros to fail."]
["Note 3:  The Teal Cells in columns B & C are for manual input, and the Present Value Table will need to be adjusted in column F."]
["The Orange cells in columns B & C will automatically fill.  The Present Value and Amortization Tables will be generated with the"]
["Macro buttons.  Please do not make changes to the orange cells or anywhere within the Tables (except column F)."]
[]
["Step 1 - Fill out the \"Fixed Subscription Payment Schedule\" above (starting on row 10)."]
["a - To calculate the Fixed Subscription Payment:"]
["i -  Start with the fixed subscription periodic payments stated in the contract."]
["ii - In addition, add \"Fixed In-Substance Fees\" to the above amount.  \"Fixed In-Substance Fees\" are the Minimum Usage Costs of a variable"]
["usage fee.  For Example, if a subscription includes up to 5 gigs of data used for a set fee, but charges extra for every additional gig, the"]
["minimum fee for the first 5 gigs is the \"Fixed In-Substance Fee\", and the per gig fees above that minimum would be the variable fees."]
["iii - For payments that depend on an index or a rate (such as the Consumer Price Index or a market interest rate), the payment should be"]
["initially measured using the index or rate published as of the start of the subscription term."]
["iv - EXCLUDE any variable usage fees and/or support/maintenance service fees included in the payment (see #24 & 25 in Data Input tab)"]
["b - If payments escalate over time, list the beginning payment amount (col B) & # of payments to be paid at that amount (col C), then"]
["move to line #2 and list the next payment amount & # of payments at that amount, etc."]
["c - If an extension is deemed Reasonably Certain to be exercised, but the amount is listed as \"negotiable\", then use the fixed"]
["payment amount just prior to the date of extension for those unknown amounts."]
["d - If there is an Abated or Free Rent period (skipped payment) indicated in the SBITA contract,",null,"Desc of Lease Incentives"]
["indicate that with a $0 payment amount (col B) & the number of payments to be skipped (col C).",null,{"$f":"'Data Input'!G139","v":0}]
["Make sure to put these skipped payments in the correct order chronologically.  For example, if there"]
["is a skipped payment for payment 13, list the first 12 payments on the first line, then list line #2 as"]
["$0 (col B) and 1 (col C), then line #3 as the continuing payments after the skipped payment."]
["e - If a Bonus payment from the SBITA Vendor is included in the contract, subtract that amount from the payment closest to the proper"]
["chronological period (as described in d above).  This may cause that payment amount to be negative."]
["f - If payments are Less Often than Annually,indicate this in the Payment Schedule above by listing the 1st payment on the 1st row  & a 1 in"]
["col C, then the 2nd row should show how many years to be skipped in col C ($0 in col B), then the 3rd row will show the 2nd payment."]
["Repeat until all payments & all years are represented in the Payment Schdl (total in col C should tie to total yrs of subscription term in"]
["cell B4)."]
["g - Use the Teal box below to add any extra details, how payments change over time (For example, (a) Payment increases 5% every 10 yrs;"]
["(b) Payment recalculated every 5 yrs based on CPI, etc.), or describe payment frequency if Less Often than Annually."]
[]
[]
[]
["h - If there are not enough lines in the Payment Schedule above, use the table below to input the additional payment amounts, and the"]
["totals from the additional table will automatically be added to the Payment Schedule above.  Contact the GAAP Group if you need more"]
["than 25 lines."]
["i - Verify that the total # of payments in cell B4 is the same as the sum of col C (cell C16)."]
[]
["Additional Subscription Payment Lines (if needed)","Amount","# of Payments"]
["Payment Amount #5 & # of Payments at this amount",0,0]
["Payment Amount #6 & # of Payments at this amount",0,0]
["Payment Amount #7 & # of Payments at this amount",0,0]
["Payment Amount #8 & # of Payments at this amount",0,0]
["Payment Amount #9 & # of Payments at this amount",0,0]
["Payment Amount #10 & # of Payments at this amount",0,0]
["Payment Amount #11 & # of Payments at this amount",0,0]
["Payment Amount #12 & # of Payments at this amount",0,0]
["Payment Amount #13 & # of Payments at this amount",0,0]
["Payment Amount #14 & # of Payments at this amount",0,0]
["Payment Amount #15 & # of Payments at this amount",0,0]
["Payment Amount #16 & # of Payments at this amount",0,0]
["Payment Amount #17 & # of Payments at this amount",0,0]
["Payment Amount #18 & # of Payments at this amount",0,0]
["Payment Amount #19 & # of Payments at this amount",0,0]
["Payment Amount #20 & # of Payments at this amount",0,0]
["Payment Amount #21 & # of Payments at this amount",0,0]
["Payment Amount #22 & # of Payments at this amount",0,0]
["Payment Amount #23 & # of Payments at this amount",0,0]
["Payment Amount #24 & # of Payments at this amount",0,0]
["Payment Amount #25 & # of Payments at this amount",0,0]
["Total Add'l Subscription Payments (will automatically be added to the Schdl above)",{"$f":"(B81*C81)+(B82*C82)+(B83*C83)+(B84*C84)+(B85*C85)+(B86*C86)+(B87*C87)+(B88*C88)+(B89*C89)+(B90*C90)+(B91*C91)+(B92*C92)+(B93*C93)+(B94*C94)+(B95*C95)+(B96*C96)+(B97*C97)+(B98*C98)+(B99*C99)+(B100*C100)+(B101*C101)","v":0},{"$f":"SUM(C81:C101)","v":0}]
[]
[]
["Step 2 - Fill out the \"Other Payment Considerations\" section (starting on row 18) ONLY if instructed to do so on the Data Input tab"]
["The Termination Penalty line should only have an amount listed if a termination clause is deemed Reasonably Certain to be exercised"]
["based on decisions by the Agency (response from the Data Input tab is shown in col C) AND this termination will cause a Penalty to be due."]
[]
["Steps 3 - 8 are OPTIONAL (calculation of Present Value and Amortization Tables)"]
["Step 3 - Click the Macro button below to Generate the first 2 columns of the Present Value (PV) Table."]
[]
[]
["Step 4 - Using the Payment Schedule filled out in Steps 1 & 2, fill in the Payment Amounts into col F of the PV Table."]
["a - If there are 12 payments for the 1st payment amount, and 6 payments for the 2nd payment amount, list the 1st amount in the"]
["first 12 rows of the Table, then the 2nd amount for the next 6 rows, and do the same for the remaining payment amounts  listed"]
["in the Payment Schedule until all the payments are filled in on the Table."]
["b - Make sure not to miss any Skipped Payment periods.  If the Payment Schedule indicates the 13th payment is $0, then row 13 of the"]
["Table should be $0, same as the Payment Schedule."]
["c - If there are any amounts listed for \"Other Payment Considerations\", add it to the final payment.  For example, if the final"]
["payment is $20,000, and there is a Termination Penalty listed for $50,000, then the final payment in the Table should be $70,000."]
["d -  Check to make sure that the sum of all the payments entered into col F of the Table is the same as the Total Undiscounted Cash"]
["Flows in cell B22."]
[]
["Step 5 - Click the Macro button below to Calculate Net Present Value and Generate the PV and Amortization Tables."]
[]
[]
[]
["Step 6 - Check data for accuracy:"]
["a - Check the date of the final payment in the Amortization Table and compare to Subscription End Date in cell B8.  Make sure the final"]
["payment date is reasonable in comparison to the subscription End Date (within same month if payments are Monthly, within the final"]
["quarter if Quarterly, etc)."]
["b - If payments change (there are amounts in Payment Amount #2 + rows), then check the dates the amounts change in the"]
["Amort Table (col K & M) to make sure the payments change on the correct dates as per the SBITA Contract."]
["c - If 6a and 6b are BOTH correct, skip to Step 8 (Do NOT click the Start Over Macro Button)."]
["d - If 6a or 6b does not appear to be correct:"]
["i - Double-check the Instructions above (Steps 1 - 6), including the check for # of payments in 1i & check for Table payments in 4d."]
["ii - Double-check cells B2-B8 by reviewing the SBITA Contract.  These cells automatically filled based on answers in the Data Input"]
["tab.  Make any necessary corrections in the Data Input tab (NOT in cells B2-B8) - the corresponding question #s are referenced above."]
["iii - Double-Check the Payment Schedule and Other Payment Considerations sections.  Compare back to the SBITA contract to"]
["verify, and correct as necessary."]
["e - Once corrections have been made, click the Macro button below to Delete the PV & Amortization Tables."]
[]
[]
[]
["Step 7 - Repeat Steps 3-6 as needed until all checks (1i, 4d, 6a, 6b, and 6di-6diii) are correct."]
[]
["Step 8 - See Net Present Value calculated in cell B25 for the SBITA Liability and the SBITA Asset Cost in cell B34."]
["Also, see Present Value Table in columns E-G,"]
["and Amortization Table in columns J-P."]
["Note:  If Implementation Period is not yet complete, then only a Development in Process Asset will be recognized at this point (cell B34 will"]
["return a value of \"Not yet determined\" if implementation is still in process & will also be noted as \"Development in Process\" in cell C31)."]
["The SBITA Liability & SBITA Asset will not be recognized until the SBITA is Put Into Service/Go-Live Date.  If this is the case, please continue"]
["to track all Implementation Costs.  This info will be requested in the following year's Closing Package Activity Form."]
[]
["Please DO NOT add SBITA implementation costs into the AZ360 Fixed Assets System.  This will be done manually as the SBITA Asset"]
["includes not only the implementation costs, but also the Present Value of the Subscription Fixed Payments (Liability)."]

{"sheet":"SBITA 6 - PV Calc","index":11,"n_rows":156,"n_cols":3,"rows_kept":156,"cut":false,"hidden":false,"merged":[[59,2,62,2],[71,0,73,2]]}
["Present Value Calculations tab - SBITA # 6 (column H)","Contract #",{"$f":"'Data Input'!H35","v":0}]
["Periodic Interest Rate (Section VI, #28-29 from Data Input tab)",{"$f":"'Data Input'!H156","v":0}]
["Cash Flows at Beginning or End (Section IV, #21)",{"$f":"'Data Input'!H108","v":0},"Important:"]
["Number of payments (Section IV, #20)",{"$f":"'Data Input'!H105","v":0},"Do not insert/delete/move"]
["Frequency of payments (Section IV, #19)",{"$f":"'Data Input'!H101","v":0},"cells B2:B8"]
["Date of first payment (Section IV, #22)",{"$f":"'Data Input'!H112","v":"00:00:00"},"(macros depend on them)"]
["Date Put Into Service/Go-Live Date (#14 from Data Input tab)",{"$f":"'Data Input'!H87","v":"00:00:00"}]
["Subscription End Date including Extensions (Section IV, #17)",{"$f":"'Data Input'!H96","v":"1900-01-30"}]
[]
["Fixed Subscription Payment Schedule (Section V, #23 & see instructions below):","Amount","# of Payments"]
["Payment Amount #1 & # of Payments at this amount",0,0]
["Payment Amount #2 & # of Payments at this amount",0,0]
["Payment Amount #3 & # of Payments at this amount",0,0]
["Payment Amount #4 & # of Payments at this amount",0,0]
["Totals from add'l table below (if needed)",{"$f":"B102","v":0},{"$f":"C102","v":0}]
["Total Subscription Payments (sum of all payment amounts * # of payments)",{"$f":"(B11*C11)+(B12*C12)+(B13*C13)+(B14*C14)+(B15)","v":0},{"$f":"SUM(C11:C15)","v":0}]
[]
["Other Payment Considerations:",null,"Answer per Data Input Tab"]
["Termination Penalty (Section V, #26)",0,{"$f":"'Data Input'!H133","v":0}]
[]
["Total Other Payment Considerations",{"$f":"SUM(B19:B20)","v":0}]
["Total Undiscounted Cash Flows (Total Payments + Other Considerations)",{"$f":"B16+B21","v":0}]
[]
[null,null,"Important:"]
["Liability Net Present Value (calculated after Macros below run)",{"$f":"SUM(G:G)","v":0},"Do not insert/delete/move"]
[null,null,"NPV must be cell B25"]
[null,null,"(macros depend on it)"]
["Asset Adjustments (from Asset Adj tab):","Asset Adj Amount"]
["Total Asset Adjustments during Current Year",{"$f":"'Asset Adj'!H124","v":0}]
["EXPECTED Future Asset Adjustments (if there is an amt here, s/b DIP)",{"$f":"'Asset Adj'!H125","v":0},"DIP or Final?"]
["Total Asset Adjustment",{"$f":"SUM(B29:B30)","v":0},{"$f":"'Asset Adj'!H127","v":"FINAL Adj Amount"}]
[]
[]
["Software Subscription Asset Cost (calculated after Macros below run)",{"$f":"IF(C31=\"FINAL Adj Amount\",B25+B31,\"Not yet determined\")","v":0}]
[]
["The Agency is not required to calculate the Present Value and/or enable Macros,"]
["but Steps 1 & 2 of the instructions below are REQUIRED to be completed."]
["After completing Steps 1 & 2, if desired to calculate the Present Value, complete Steps 3 - 8:"]
[]
["Note 1:  First make sure your Excel settings are correct -","See How to Enable Macros tab"]
["Note 2:  Please do not Insert, Delete, or Move any cells, columns or rows as this could cause the Macros to fail."]
["Note 3:  The Teal Cells in columns B & C are for manual input, and the Present Value Table will need to be adjusted in column F."]
["The Orange cells in columns B & C will automatically fill.  The Present Value and Amortization Tables will be generated with the"]
["Macro buttons.  Please do not make changes to the orange cells or anywhere within the Tables (except column F)."]
[]
["Step 1 - Fill out the \"Fixed Subscription Payment Schedule\" above (starting on row 10)."]
["a - To calculate the Fixed Subscription Payment:"]
["i -  Start with the fixed subscription periodic payments stated in the contract."]
["ii - In addition, add \"Fixed In-Substance Fees\" to the above amount.  \"Fixed In-Substance Fees\" are the Minimum Usage Costs of a variable"]
["usage fee.  For Example, if a subscription includes up to 5 gigs of data used for a set fee, but charges extra for every additional gig, the"]
["minimum fee for the first 5 gigs is the \"Fixed In-Substance Fee\", and the per gig fees above that minimum would be the variable fees."]
["iii - For payments that depend on an index or a rate (such as the Consumer Price Index or a market interest rate), the payment should be"]
["initially measured using the index or rate published as of the start of the subscription term."]
["iv - EXCLUDE any variable usage fees and/or support/maintenance service fees included in the payment (see #24 & 25 in Data Input tab)"]
["b - If payments escalate over time, list the beginning payment amount (col B) & # of payments to be paid at that amount (col C), then"]
["move to line #2 and list the next payment amount & # of payments at that amount, etc."]
["c - If an extension is deemed Reasonably Certain to be exercised, but the amount is listed as \"negotiable\", then use the fixed"]
["payment amount just prior to the date of extension for those unknown amounts."]
["d - If there is an Abated or Free Rent period (skipped payment) indicated in the SBITA contract,",null,"Desc of Lease Incentives"]
["indicate that with a $0 payment amount (col B) & the number of payments to be skipped (col C).",null,{"$f":"'Data Input'!H139","v":0}]
["Make sure to put these skipped payments in the correct order chronologically.  For example, if there"]
["is a skipped payment for payment 13, list the first 12 payments on the first line, then list line #2 as"]
["$0 (col B) and 1 (col C), then line #3 as the continuing payments after the skipped payment."]
["e - If a Bonus payment from the SBITA Vendor is included in the contract, subtract that amount from the payment closest to the proper"]
["chronological period (as described in d above).  This may cause that payment amount to be negative."]
["f - If payments are Less Often than Annually,indicate this in the Payment Schedule above by listing the 1st payment on the 1st row  & a 1 in"]
["col C, then the 2nd row should show how many years to be skipped in col C ($0 in col B), then the 3rd row will show the 2nd payment."]
["Repeat until all payments & all years are represented in the Payment Schdl (total in col C should tie to total yrs of subscription term in"]
["cell B4)."]
["g - Use the Teal box below to add any extra details, how payments change over time (For example, (a) Payment increases 5% every 10 yrs;"]
["(b) Payment recalculated every 5 yrs based on CPI, etc.), or describe payment frequency if Less Often than Annually."]
[]
[]
[]
["h - If there are not enough lines in the Payment Schedule above, use the table below to input the additional payment amounts, and the"]
["totals from the additional table will automatically be added to the Payment Schedule above.  Contact the GAAP Group if you need more"]
["than 25 lines."]
["i - Verify that the total # of payments in cell B4 is the same as the sum of col C (cell C16)."]
[]
["Additional Subscription Payment Lines (if needed)","Amount","# of Payments"]
["Payment Amount #5 & # of Payments at this amount",0,0]
["Payment Amount #6 & # of Payments at this amount",0,0]
["Payment Amount #7 & # of Payments at this amount",0,0]
["Payment Amount #8 & # of Payments at this amount",0,0]
["Payment Amount #9 & # of Payments at this amount",0,0]
["Payment Amount #10 & # of Payments at this amount",0,0]
["Payment Amount #11 & # of Payments at this amount",0,0]
["Payment Amount #12 & # of Payments at this amount",0,0]
["Payment Amount #13 & # of Payments at this amount",0,0]
["Payment Amount #14 & # of Payments at this amount",0,0]
["Payment Amount #15 & # of Payments at this amount",0,0]
["Payment Amount #16 & # of Payments at this amount",0,0]
["Payment Amount #17 & # of Payments at this amount",0,0]
["Payment Amount #18 & # of Payments at this amount",0,0]
["Payment Amount #19 & # of Payments at this amount",0,0]
["Payment Amount #20 & # of Payments at this amount",0,0]
["Payment Amount #21 & # of Payments at this amount",0,0]
["Payment Amount #22 & # of Payments at this amount",0,0]
["Payment Amount #23 & # of Payments at this amount",0,0]
["Payment Amount #24 & # of Payments at this amount",0,0]
["Payment Amount #25 & # of Payments at this amount",0,0]
["Total Add'l Subscription Payments (will automatically be added to the Schdl above)",{"$f":"(B81*C81)+(B82*C82)+(B83*C83)+(B84*C84)+(B85*C85)+(B86*C86)+(B87*C87)+(B88*C88)+(B89*C89)+(B90*C90)+(B91*C91)+(B92*C92)+(B93*C93)+(B94*C94)+(B95*C95)+(B96*C96)+(B97*C97)+(B98*C98)+(B99*C99)+(B100*C100)+(B101*C101)","v":0},{"$f":"SUM(C81:C101)","v":0}]
[]
[]
["Step 2 - Fill out the \"Other Payment Considerations\" section (starting on row 18) ONLY if instructed to do so on the Data Input tab"]
["The Termination Penalty line should only have an amount listed if a termination clause is deemed Reasonably Certain to be exercised"]
["based on decisions by the Agency (response from the Data Input tab is shown in col C) AND this termination will cause a Penalty to be due."]
[]
["Steps 3 - 8 are OPTIONAL (calculation of Present Value and Amortization Tables)"]
["Step 3 - Click the Macro button below to Generate the first 2 columns of the Present Value (PV) Table."]
[]
[]
["Step 4 - Using the Payment Schedule filled out in Steps 1 & 2, fill in the Payment Amounts into col F of the PV Table."]
["a - If there are 12 payments for the 1st payment amount, and 6 payments for the 2nd payment amount, list the 1st amount in the"]
["first 12 rows of the Table, then the 2nd amount for the next 6 rows, and do the same for the remaining payment amounts  listed"]
["in the Payment Schedule until all the payments are filled in on the Table."]
["b - Make sure not to miss any Skipped Payment periods.  If the Payment Schedule indicates the 13th payment is $0, then row 13 of the"]
["Table should be $0, same as the Payment Schedule."]
["c - If there are any amounts listed for \"Other Payment Considerations\", add it to the final payment.  For example, if the final"]
["payment is $20,000, and there is a Termination Penalty listed for $50,000, then the final payment in the Table should be $70,000."]
["d -  Check to make sure that the sum of all the payments entered into col F of the Table is the same as the Total Undiscounted Cash"]
["Flows in cell B22."]
[]
["Step 5 - Click the Macro button below to Calculate Net Present Value and Generate the PV and Amortization Tables."]
[]
[]
[]
["Step 6 - Check data for accuracy:"]
["a - Check the date of the final payment in the Amortization Table and compare to Subscription End Date in cell B8.  Make sure the final"]
["payment date is reasonable in comparison to the subscription End Date (within same month if payments are Monthly, within the final"]
["quarter if Quarterly, etc)."]
["b - If payments change (there are amounts in Payment Amount #2 + rows), then check the dates the amounts change in the"]
["Amort Table (col K & M) to make sure the payments change on the correct dates as per the SBITA Contract."]
["c - If 6a and 6b are BOTH correct, skip to Step 8 (Do NOT click the Start Over Macro Button)."]
["d - If 6a or 6b does not appear to be correct:"]
["i - Double-check the Instructions above (Steps 1 - 6), including the check for # of payments in 1i & check for Table payments in 4d."]
["ii - Double-check cells B2-B8 by reviewing the SBITA Contract.  These cells automatically filled based on answers in the Data Input"]
["tab.  Make any necessary corrections in the Data Input tab (NOT in cells B2-B8) - the corresponding question #s are referenced above."]
["iii - Double-Check the Payment Schedule and Other Payment Considerations sections.  Compare back to the SBITA contract to"]
["verify, and correct as necessary."]
["e - Once corrections have been made, click the Macro button below to Delete the PV & Amortization Tables."]
[]
[]
[]
["Step 7 - Repeat Steps 3-6 as needed until all checks (1i, 4d, 6a, 6b, and 6di-6diii) are correct."]
[]
["Step 8 - See Net Present Value calculated in cell B25 for the SBITA Liability and the SBITA Asset Cost in cell B34."]
["Also, see Present Value Table in columns E-G,"]
["and Amortization Table in columns J-P."]
["Note:  If Implementation Period is not yet complete, then only a Development in Process Asset will be recognized at this point (cell B34 will"]
["return a value of \"Not yet determined\" if implementation is still in process & will also be noted as \"Development in Process\" in cell C31)."]
["The SBITA Liability & SBITA Asset will not be recognized until the SBITA is Put Into Service/Go-Live Date.  If this is the case, please continue"]
["to track all Implementation Costs.  This info will be requested in the following year's Closing Package Activity Form."]
[]
["Please DO NOT add SBITA implementation costs into the AZ360 Fixed Assets System.  This will be done manually as the SBITA Asset"]
["includes not only the implementation costs, but also the Present Value of the Subscription Fixed Payments (Liability)."]

{"sheet":"SBITA 7 - PV Calc","index":12,"n_rows":156,"n_cols":3,"rows_kept":156,"cut":false,"hidden":false,"merged":[[59,2,62,2],[71,0,73,2]]}
["Present Value Calculations tab - SBITA # 7 (column I)","Contract #",{"$f":"'Data Input'!I35","v":0}]
["Periodic Interest Rate (Section VI, #28-29 from Data Input tab)",{"$f":"'Data Input'!I156","v":0}]
["Cash Flows at Beginning or End (Section IV, #21)",{"$f":"'Data Input'!I108","v":0},"Important:"]
["Number of payments (Section IV, #20)",{"$f":"'Data Input'!I105","v":0},"Do not insert/delete/move"]
["Frequency of payments (Section IV, #19)",{"$f":"'Data Input'!I101","v":0},"cells B2:B8"]
["Date of first payment (Section IV, #22)",{"$f":"'Data Input'!I112","v":"00:00:00"},"(macros depend on them)"]
["Date Put Into Service/Go-Live Date (#14 from Data Input tab)",{"$f":"'Data Input'!I87","v":"00:00:00"}]
["Subscription End Date including Extensions (Section IV, #17)",{"$f":"'Data Input'!I96","v":"1900-01-30"}]
[]
["Fixed Subscription Payment Schedule (Section V, #23 & see instructions below):","Amount","# of Payments"]
["Payment Amount #1 & # of Payments at this amount",0,0]
["Payment Amount #2 & # of Payments at this amount",0,0]
["Payment Amount #3 & # of Payments at this amount",0,0]
["Payment Amount #4 & # of Payments at this amount",0,0]
["Totals from add'l table below (if needed)",{"$f":"B102","v":0},{"$f":"C102","v":0}]
["Total Subscription Payments (sum of all payment amounts * # of payments)",{"$f":"(B11*C11)+(B12*C12)+(B13*C13)+(B14*C14)+(B15)","v":0},{"$f":"SUM(C11:C15)","v":0}]
[]
["Other Payment Considerations:",null,"Answer per Data Input Tab"]
["Termination Penalty (Section V, #26)",0,{"$f":"'Data Input'!I133","v":0}]
[]
["Total Other Payment Considerations",{"$f":"SUM(B19:B20)","v":0}]
["Total Undiscounted Cash Flows (Total Payments + Other Considerations)",{"$f":"B16+B21","v":0}]
[]
[null,null,"Important:"]
["Liability Net Present Value (calculated after Macros below run)",{"$f":"SUM(G:G)","v":0},"Do not insert/delete/move"]
[null,null,"NPV must be cell B25"]
[null,null,"(macros depend on it)"]
["Asset Adjustments (from Asset Adj tab):","Asset Adj Amount"]
["Total Asset Adjustments during Current Year",{"$f":"'Asset Adj'!I124","v":0}]
["EXPECTED Future Asset Adjustments (if there is an amt here, s/b DIP)",{"$f":"'Asset Adj'!I125","v":0},"DIP or Final?"]
["Total Asset Adjustment",{"$f":"SUM(B29:B30)","v":0},{"$f":"'Asset Adj'!I127","v":"FINAL Adj Amount"}]
[]
[]
["Software Subscription Asset Cost (calculated after Macros below run)",{"$f":"IF(C31=\"FINAL Adj Amount\",B25+B31,\"Not yet determined\")","v":0}]
[]
["The Agency is not required to calculate the Present Value and/or enable Macros,"]
["but Steps 1 & 2 of the instructions below are REQUIRED to be completed."]
["After completing Steps 1 & 2, if desired to calculate the Present Value, complete Steps 3 - 8:"]
[]
["Note 1:  First make sure your Excel settings are correct -","See How to Enable Macros tab"]
["Note 2:  Please do not Insert, Delete, or Move any cells, columns or rows as this could cause the Macros to fail."]
["Note 3:  The Teal Cells in columns B & C are for manual input, and the Present Value Table will need to be adjusted in column F."]
["The Orange cells in columns B & C will automatically fill.  The Present Value and Amortization Tables will be generated with the"]
["Macro buttons.  Please do not make changes to the orange cells or anywhere within the Tables (except column F)."]
[]
["Step 1 - Fill out the \"Fixed Subscription Payment Schedule\" above (starting on row 10)."]
["a - To calculate the Fixed Subscription Payment:"]
["i -  Start with the fixed subscription periodic payments stated in the contract."]
["ii - In addition, add \"Fixed In-Substance Fees\" to the above amount.  \"Fixed In-Substance Fees\" are the Minimum Usage Costs of a variable"]
["usage fee.  For Example, if a subscription includes up to 5 gigs of data used for a set fee, but charges extra for every additional gig, the"]
["minimum fee for the first 5 gigs is the \"Fixed In-Substance Fee\", and the per gig fees above that minimum would be the variable fees."]
["iii - For payments that depend on an index or a rate (such as the Consumer Price Index or a market interest rate), the payment should be"]
["initially measured using the index or rate published as of the start of the subscription term."]
["iv - EXCLUDE any variable usage fees and/or support/maintenance service fees included in the payment (see #24 & 25 in Data Input tab)"]
["b - If payments escalate over time, list the beginning payment amount (col B) & # of payments to be paid at that amount (col C), then"]
["move to line #2 and list the next payment amount & # of payments at that amount, etc."]
["c - If an extension is deemed Reasonably Certain to be exercised, but the amount is listed as \"negotiable\", then use the fixed"]
["payment amount just prior to the date of extension for those unknown amounts."]
["d - If there is an Abated or Free Rent period (skipped payment) indicated in the SBITA contract,",null,"Desc of Lease Incentives"]
["indicate that with a $0 payment amount (col B) & the number of payments to be skipped (col C).",null,{"$f":"'Data Input'!I139","v":0}]
["Make sure to put these skipped payments in the correct order chronologically.  For example, if there"]
["is a skipped payment for payment 13, list the first 12 payments on the first line, then list line #2 as"]
["$0 (col B) and 1 (col C), then line #3 as the continuing payments after the skipped payment."]
["e - If a Bonus payment from the SBITA Vendor is included in the contract, subtract that amount from the payment closest to the proper"]
["chronological period (as described in d above).  This may cause that payment amount to be negative."]
["f - If payments are Less Often than Annually,indicate this in the Payment Schedule above by listing the 1st payment on the 1st row  & a 1 in"]
["col C, then the 2nd row should show how many years to be skipped in col C ($0 in col B), then the 3rd row will show the 2nd payment."]
["Repeat until all payments & all years are represented in the Payment Schdl (total in col C should tie to total yrs of subscription term in"]
["cell B4)."]
["g - Use the Teal box below to add any extra details, how payments change over time (For example, (a) Payment increases 5% every 10 yrs;"]
["(b) Payment recalculated every 5 yrs based on CPI, etc.), or describe payment frequency if Less Often than Annually."]
[]
[]
[]
["h - If there are not enough lines in the Payment Schedule above, use the table below to input the additional payment amounts, and the"]
["totals from the additional table will automatically be added to the Payment Schedule above.  Contact the GAAP Group if you need more"]
["than 25 lines."]
["i - Verify that the total # of payments in cell B4 is the same as the sum of col C (cell C16)."]
[]
["Additional Subscription Payment Lines (if needed)","Amount","# of Payments"]
["Payment Amount #5 & # of Payments at this amount",0,0]
["Payment Amount #6 & # of Payments at this amount",0,0]
["Payment Amount #7 & # of Payments at this amount",0,0]
["Payment Amount #8 & # of Payments at this amount",0,0]
["Payment Amount #9 & # of Payments at this amount",0,0]
["Payment Amount #10 & # of Payments at this amount",0,0]
["Payment Amount #11 & # of Payments at this amount",0,0]
["Payment Amount #12 & # of Payments at this amount",0,0]
["Payment Amount #13 & # of Payments at this amount",0,0]
["Payment Amount #14 & # of Payments at this amount",0,0]
["Payment Amount #15 & # of Payments at this amount",0,0]
["Payment Amount #16 & # of Payments at this amount",0,0]
["Payment Amount #17 & # of Payments at this amount",0,0]
["Payment Amount #18 & # of Payments at this amount",0,0]
["Payment Amount #19 & # of Payments at this amount",0,0]
["Payment Amount #20 & # of Payments at this amount",0,0]
["Payment Amount #21 & # of Payments at this amount",0,0]
["Payment Amount #22 & # of Payments at this amount",0,0]
["Payment Amount #23 & # of Payments at this amount",0,0]
["Payment Amount #24 & # of Payments at this amount",0,0]
["Payment Amount #25 & # of Payments at this amount",0,0]
["Total Add'l Subscription Payments (will automatically be added to the Schdl above)",{"$f":"(B81*C81)+(B82*C82)+(B83*C83)+(B84*C84)+(B85*C85)+(B86*C86)+(B87*C87)+(B88*C88)+(B89*C89)+(B90*C90)+(B91*C91)+(B92*C92)+(B93*C93)+(B94*C94)+(B95*C95)+(B96*C96)+(B97*C97)+(B98*C98)+(B99*C99)+(B100*C100)+(B101*C101)","v":0},{"$f":"SUM(C81:C101)","v":0}]
[]
[]
["Step 2 - Fill out the \"Other Payment Considerations\" section (starting on row 18) ONLY if instructed to do so on the Data Input tab"]
["The Termination Penalty line should only have an amount listed if a termination clause is deemed Reasonably Certain to be exercised"]
["based on decisions by the Agency (response from the Data Input tab is shown in col C) AND this termination will cause a Penalty to be due."]
[]
["Steps 3 - 8 are OPTIONAL (calculation of Present Value and Amortization Tables)"]
["Step 3 - Click the Macro button below to Generate the first 2 columns of the Present Value (PV) Table."]
[]
[]
["Step 4 - Using the Payment Schedule filled out in Steps 1 & 2, fill in the Payment Amounts into col F of the PV Table."]
["a - If there are 12 payments for the 1st payment amount, and 6 payments for the 2nd payment amount, list the 1st amount in the"]
["first 12 rows of the Table, then the 2nd amount for the next 6 rows, and do the same for the remaining payment amounts  listed"]
["in the Payment Schedule until all the payments are filled in on the Table."]
["b - Make sure not to miss any Skipped Payment periods.  If the Payment Schedule indicates the 13th payment is $0, then row 13 of the"]
["Table should be $0, same as the Payment Schedule."]
["c - If there are any amounts listed for \"Other Payment Considerations\", add it to the final payment.  For example, if the final"]
["payment is $20,000, and there is a Termination Penalty listed for $50,000, then the final payment in the Table should be $70,000."]
["d -  Check to make sure that the sum of all the payments entered into col F of the Table is the same as the Total Undiscounted Cash"]
["Flows in cell B22."]
[]
["Step 5 - Click the Macro button below to Calculate Net Present Value and Generate the PV and Amortization Tables."]
[]
[]
[]
["Step 6 - Check data for accuracy:"]
["a - Check the date of the final payment in the Amortization Table and compare to Subscription End Date in cell B8.  Make sure the final"]
["payment date is reasonable in comparison to the subscription End Date (within same month if payments are Monthly, within the final"]
["quarter if Quarterly, etc)."]
["b - If payments change (there are amounts in Payment Amount #2 + rows), then check the dates the amounts change in the"]
["Amort Table (col K & M) to make sure the payments change on the correct dates as per the SBITA Contract."]
["c - If 6a and 6b are BOTH correct, skip to Step 8 (Do NOT click the Start Over Macro Button)."]
["d - If 6a or 6b does not appear to be correct:"]
["i - Double-check the Instructions above (Steps 1 - 6), including the check for # of payments in 1i & check for Table payments in 4d."]
["ii - Double-check cells B2-B8 by reviewing the SBITA Contract.  These cells automatically filled based on answers in the Data Input"]
["tab.  Make any necessary corrections in the Data Input tab (NOT in cells B2-B8) - the corresponding question #s are referenced above."]
["iii - Double-Check the Payment Schedule and Other Payment Considerations sections.  Compare back to the SBITA contract to"]
["verify, and correct as necessary."]
["e - Once corrections have been made, click the Macro button below to Delete the PV & Amortization Tables."]
[]
[]
[]
["Step 7 - Repeat Steps 3-6 as needed until all checks (1i, 4d, 6a, 6b, and 6di-6diii) are correct."]
[]
["Step 8 - See Net Present Value calculated in cell B25 for the SBITA Liability and the SBITA Asset Cost in cell B34."]
["Also, see Present Value Table in columns E-G,"]
["and Amortization Table in columns J-P."]
["Note:  If Implementation Period is not yet complete, then only a Development in Process Asset will be recognized at this point (cell B34 will"]
["return a value of \"Not yet determined\" if implementation is still in process & will also be noted as \"Development in Process\" in cell C31)."]
["The SBITA Liability & SBITA Asset will not be recognized until the SBITA is Put Into Service/Go-Live Date.  If this is the case, please continue"]
["to track all Implementation Costs.  This info will be requested in the following year's Closing Package Activity Form."]
[]
["Please DO NOT add SBITA implementation costs into the AZ360 Fixed Assets System.  This will be done manually as the SBITA Asset"]
["includes not only the implementation costs, but also the Present Value of the Subscription Fixed Payments (Liability)."]

{"sheet":"SBITA 8 - PV Calc","index":13,"n_rows":156,"n_cols":3,"rows_kept":156,"cut":false,"hidden":false,"merged":[[59,2,62,2],[71,0,73,2]]}
["Present Value Calculations tab - SBITA # 8 (column J)","Contract #",{"$f":"'Data Input'!J35","v":0}]
["Periodic Interest Rate (Section VI, #28-29 from Data Input tab)",{"$f":"'Data Input'!J156","v":0}]
["Cash Flows at Beginning or End (Section IV, #21)",{"$f":"'Data Input'!J108","v":0},"Important:"]
["Number of payments (Section IV, #20)",{"$f":"'Data Input'!J105","v":0},"Do not insert/delete/move"]
["Frequency of payments (Section IV, #19)",{"$f":"'Data Input'!J101","v":0},"cells B2:B8"]
["Date of first payment (Section IV, #22)",{"$f":"'Data Input'!J112","v":"00:00:00"},"(macros depend on them)"]
["Date Put Into Service/Go-Live Date (#14 from Data Input tab)",{"$f":"'Data Input'!J87","v":"00:00:00"}]
["Subscription End Date including Extensions (Section IV, #17)",{"$f":"'Data Input'!J96","v":"1900-01-30"}]
[]
["Fixed Subscription Payment Schedule (Section V, #23 & see instructions below):","Amount","# of Payments"]
["Payment Amount #1 & # of Payments at this amount",0,0]
["Payment Amount #2 & # of Payments at this amount",0,0]
["Payment Amount #3 & # of Payments at this amount",0,0]
["Payment Amount #4 & # of Payments at this amount",0,0]
["Totals from add'l table below (if needed)",{"$f":"B102","v":0},{"$f":"C102","v":0}]
["Total Subscription Payments (sum of all payment amounts * # of payments)",{"$f":"(B11*C11)+(B12*C12)+(B13*C13)+(B14*C14)+(B15)","v":0},{"$f":"SUM(C11:C15)","v":0}]
[]
["Other Payment Considerations:",null,"Answer per Data Input Tab"]
["Termination Penalty (Section V, #26)",0,{"$f":"'Data Input'!J133","v":0}]
[]
["Total Other Payment Considerations",{"$f":"SUM(B19:B20)","v":0}]
["Total Undiscounted Cash Flows (Total Payments + Other Considerations)",{"$f":"B16+B21","v":0}]
[]
[null,null,"Important:"]
["Liability Net Present Value (calculated after Macros below run)",{"$f":"SUM(G:G)","v":0},"Do not insert/delete/move"]
[null,null,"NPV must be cell B25"]
[null,null,"(macros depend on it)"]
["Asset Adjustments (from Asset Adj tab):","Asset Adj Amount"]
["Total Asset Adjustments during Current Year",{"$f":"'Asset Adj'!J124","v":0}]
["EXPECTED Future Asset Adjustments (if there is an amt here, s/b DIP)",{"$f":"'Asset Adj'!J125","v":0},"DIP or Final?"]
["Total Asset Adjustment",{"$f":"SUM(B29:B30)","v":0},{"$f":"'Asset Adj'!J127","v":"FINAL Adj Amount"}]
[]
[]
["Software Subscription Asset Cost (calculated after Macros below run)",{"$f":"IF(C31=\"FINAL Adj Amount\",B25+B31,\"Not yet determined\")","v":0}]
[]
["The Agency is not required to calculate the Present Value and/or enable Macros,"]
["but Steps 1 & 2 of the instructions below are REQUIRED to be completed."]
["After completing Steps 1 & 2, if desired to calculate the Present Value, complete Steps 3 - 8:"]
[]
["Note 1:  First make sure your Excel settings are correct -","See How to Enable Macros tab"]
["Note 2:  Please do not Insert, Delete, or Move any cells, columns or rows as this could cause the Macros to fail."]
["Note 3:  The Teal Cells in columns B & C are for manual input, and the Present Value Table will need to be adjusted in column F."]
["The Orange cells in columns B & C will automatically fill.  The Present Value and Amortization Tables will be generated with the"]
["Macro buttons.  Please do not make changes to the orange cells or anywhere within the Tables (except column F)."]
[]
["Step 1 - Fill out the \"Fixed Subscription Payment Schedule\" above (starting on row 10)."]
["a - To calculate the Fixed Subscription Payment:"]
["i -  Start with the fixed subscription periodic payments stated in the contract."]
["ii - In addition, add \"Fixed In-Substance Fees\" to the above amount.  \"Fixed In-Substance Fees\" are the Minimum Usage Costs of a variable"]
["usage fee.  For Example, if a subscription includes up to 5 gigs of data used for a set fee, but charges extra for every additional gig, the"]
["minimum fee for the first 5 gigs is the \"Fixed In-Substance Fee\", and the per gig fees above that minimum would be the variable fees."]
["iii - For payments that depend on an index or a rate (such as the Consumer Price Index or a market interest rate), the payment should be"]
["initially measured using the index or rate published as of the start of the subscription term."]
["iv - EXCLUDE any variable usage fees and/or support/maintenance service fees included in the payment (see #24 & 25 in Data Input tab)"]
["b - If payments escalate over time, list the beginning payment amount (col B) & # of payments to be paid at that amount (col C), then"]
["move to line #2 and list the next payment amount & # of payments at that amount, etc."]
["c - If an extension is deemed Reasonably Certain to be exercised, but the amount is listed as \"negotiable\", then use the fixed"]
["payment amount just prior to the date of extension for those unknown amounts."]
["d - If there is an Abated or Free Rent period (skipped payment) indicated in the SBITA contract,",null,"Desc of Lease Incentives"]
["indicate that with a $0 payment amount (col B) & the number of payments to be skipped (col C).",null,{"$f":"'Data Input'!J139","v":0}]
["Make sure to put these skipped payments in the correct order chronologically.  For example, if there"]
["is a skipped payment for payment 13, list the first 12 payments on the first line, then list line #2 as"]
["$0 (col B) and 1 (col C), then line #3 as the continuing payments after the skipped payment."]
["e - If a Bonus payment from the SBITA Vendor is included in the contract, subtract that amount from the payment closest to the proper"]
["chronological period (as described in d above).  This may cause that payment amount to be negative."]
["f - If payments are Less Often than Annually,indicate this in the Payment Schedule above by listing the 1st payment on the 1st row  & a 1 in"]
["col C, then the 2nd row should show how many years to be skipped in col C ($0 in col B), then the 3rd row will show the 2nd payment."]
["Repeat until all payments & all years are represented in the Payment Schdl (total in col C should tie to total yrs of subscription term in"]
["cell B4)."]
["g - Use the Teal box below to add any extra details, how payments change over time (For example, (a) Payment increases 5% every 10 yrs;"]
["(b) Payment recalculated every 5 yrs based on CPI, etc.), or describe payment frequency if Less Often than Annually."]
[]
[]
[]
["h - If there are not enough lines in the Payment Schedule above, use the table below to input the additional payment amounts, and the"]
["totals from the additional table will automatically be added to the Payment Schedule above.  Contact the GAAP Group if you need more"]
["than 25 lines."]
["i - Verify that the total # of payments in cell B4 is the same as the sum of col C (cell C16)."]
[]
["Additional Subscription Payment Lines (if needed)","Amount","# of Payments"]
["Payment Amount #5 & # of Payments at this amount",0,0]
["Payment Amount #6 & # of Payments at this amount",0,0]
["Payment Amount #7 & # of Payments at this amount",0,0]
["Payment Amount #8 & # of Payments at this amount",0,0]
["Payment Amount #9 & # of Payments at this amount",0,0]
["Payment Amount #10 & # of Payments at this amount",0,0]
["Payment Amount #11 & # of Payments at this amount",0,0]
["Payment Amount #12 & # of Payments at this amount",0,0]
["Payment Amount #13 & # of Payments at this amount",0,0]
["Payment Amount #14 & # of Payments at this amount",0,0]
["Payment Amount #15 & # of Payments at this amount",0,0]
["Payment Amount #16 & # of Payments at this amount",0,0]
["Payment Amount #17 & # of Payments at this amount",0,0]
["Payment Amount #18 & # of Payments at this amount",0,0]
["Payment Amount #19 & # of Payments at this amount",0,0]
["Payment Amount #20 & # of Payments at this amount",0,0]
["Payment Amount #21 & # of Payments at this amount",0,0]
["Payment Amount #22 & # of Payments at this amount",0,0]
["Payment Amount #23 & # of Payments at this amount",0,0]
["Payment Amount #24 & # of Payments at this amount",0,0]
["Payment Amount #25 & # of Payments at this amount",0,0]
["Total Add'l Subscription Payments (will automatically be added to the Schdl above)",{"$f":"(B81*C81)+(B82*C82)+(B83*C83)+(B84*C84)+(B85*C85)+(B86*C86)+(B87*C87)+(B88*C88)+(B89*C89)+(B90*C90)+(B91*C91)+(B92*C92)+(B93*C93)+(B94*C94)+(B95*C95)+(B96*C96)+(B97*C97)+(B98*C98)+(B99*C99)+(B100*C100)+(B101*C101)","v":0},{"$f":"SUM(C81:C101)","v":0}]
[]
[]
["Step 2 - Fill out the \"Other Payment Considerations\" section (starting on row 18) ONLY if instructed to do so on the Data Input tab"]
["The Termination Penalty line should only have an amount listed if a termination clause is deemed Reasonably Certain to be exercised"]
["based on decisions by the Agency (response from the Data Input tab is shown in col C) AND this termination will cause a Penalty to be due."]
[]
["Steps 3 - 8 are OPTIONAL (calculation of Present Value and Amortization Tables)"]
["Step 3 - Click the Macro button below to Generate the first 2 columns of the Present Value (PV) Table."]
[]
[]
["Step 4 - Using the Payment Schedule filled out in Steps 1 & 2, fill in the Payment Amounts into col F of the PV Table."]
["a - If there are 12 payments for the 1st payment amount, and 6 payments for the 2nd payment amount, list the 1st amount in the"]
["first 12 rows of the Table, then the 2nd amount for the next 6 rows, and do the same for the remaining payment amounts  listed"]
["in the Payment Schedule until all the payments are filled in on the Table."]
["b - Make sure not to miss any Skipped Payment periods.  If the Payment Schedule indicates the 13th payment is $0, then row 13 of the"]
["Table should be $0, same as the Payment Schedule."]
["c - If there are any amounts listed for \"Other Payment Considerations\", add it to the final payment.  For example, if the final"]
["payment is $20,000, and there is a Termination Penalty listed for $50,000, then the final payment in the Table should be $70,000."]
["d -  Check to make sure that the sum of all the payments entered into col F of the Table is the same as the Total Undiscounted Cash"]
["Flows in cell B22."]
[]
["Step 5 - Click the Macro button below to Calculate Net Present Value and Generate the PV and Amortization Tables."]
[]
[]
[]
["Step 6 - Check data for accuracy:"]
["a - Check the date of the final payment in the Amortization Table and compare to Subscription End Date in cell B8.  Make sure the final"]
["payment date is reasonable in comparison to the subscription End Date (within same month if payments are Monthly, within the final"]
["quarter if Quarterly, etc)."]
["b - If payments change (there are amounts in Payment Amount #2 + rows), then check the dates the amounts change in the"]
["Amort Table (col K & M) to make sure the payments change on the correct dates as per the SBITA Contract."]
["c - If 6a and 6b are BOTH correct, skip to Step 8 (Do NOT click the Start Over Macro Button)."]
["d - If 6a or 6b does not appear to be correct:"]
["i - Double-check the Instructions above (Steps 1 - 6), including the check for # of payments in 1i & check for Table payments in 4d."]
["ii - Double-check cells B2-B8 by reviewing the SBITA Contract.  These cells automatically filled based on answers in the Data Input"]
["tab.  Make any necessary corrections in the Data Input tab (NOT in cells B2-B8) - the corresponding question #s are referenced above."]
["iii - Double-Check the Payment Schedule and Other Payment Considerations sections.  Compare back to the SBITA contract to"]
["verify, and correct as necessary."]
["e - Once corrections have been made, click the Macro button below to Delete the PV & Amortization Tables."]
[]
[]
[]
["Step 7 - Repeat Steps 3-6 as needed until all checks (1i, 4d, 6a, 6b, and 6di-6diii) are correct."]
[]
["Step 8 - See Net Present Value calculated in cell B25 for the SBITA Liability and the SBITA Asset Cost in cell B34."]
["Also, see Present Value Table in columns E-G,"]
["and Amortization Table in columns J-P."]
["Note:  If Implementation Period is not yet complete, then only a Development in Process Asset will be recognized at this point (cell B34 will"]
["return a value of \"Not yet determined\" if implementation is still in process & will also be noted as \"Development in Process\" in cell C31)."]
["The SBITA Liability & SBITA Asset will not be recognized until the SBITA is Put Into Service/Go-Live Date.  If this is the case, please continue"]
["to track all Implementation Costs.  This info will be requested in the following year's Closing Package Activity Form."]
[]
["Please DO NOT add SBITA implementation costs into the AZ360 Fixed Assets System.  This will be done manually as the SBITA Asset"]
["includes not only the implementation costs, but also the Present Value of the Subscription Fixed Payments (Liability)."]

{"sheet":"SBITA 9 - PV Calc","index":14,"n_rows":156,"n_cols":3,"rows_kept":156,"cut":false,"hidden":false,"merged":[[59,2,62,2],[71,0,73,2]]}
["Present Value Calculations tab - SBITA # 9 (column K)","Contract #",{"$f":"'Data Input'!K35","v":0}]
["Periodic Interest Rate (Section VI, #28-29 from Data Input tab)",{"$f":"'Data Input'!K156","v":0}]
["Cash Flows at Beginning or End (Section IV, #21)",{"$f":"'Data Input'!K108","v":0},"Important:"]
["Number of payments (Section IV, #20)",{"$f":"'Data Input'!K105","v":0},"Do not insert/delete/move"]
["Frequency of payments (Section IV, #19)",{"$f":"'Data Input'!K101","v":0},"cells B2:B8"]
["Date of first payment (Section IV, #22)",{"$f":"'Data Input'!K112","v":"00:00:00"},"(macros depend on them)"]
["Date Put Into Service/Go-Live Date (#14 from Data Input tab)",{"$f":"'Data Input'!K87","v":"00:00:00"}]
["Subscription End Date including Extensions (Section IV, #17)",{"$f":"'Data Input'!K96","v":"1900-01-30"}]
[]
["Fixed Subscription Payment Schedule (Section V, #23 & see instructions below):","Amount","# of Payments"]
["Payment Amount #1 & # of Payments at this amount",0,0]
["Payment Amount #2 & # of Payments at this amount",0,0]
["Payment Amount #3 & # of Payments at this amount",0,0]
["Payment Amount #4 & # of Payments at this amount",0,0]
["Totals from add'l table below (if needed)",{"$f":"B102","v":0},{"$f":"C102","v":0}]
["Total Subscription Payments (sum of all payment amounts * # of payments)",{"$f":"(B11*C11)+(B12*C12)+(B13*C13)+(B14*C14)+(B15)","v":0},{"$f":"SUM(C11:C15)","v":0}]
[]
["Other Payment Considerations:",null,"Answer per Data Input Tab"]
["Termination Penalty (Section V, #26)",0,{"$f":"'Data Input'!K133","v":0}]
[]
["Total Other Payment Considerations",{"$f":"SUM(B19:B20)","v":0}]
["Total Undiscounted Cash Flows (Total Payments + Other Considerations)",{"$f":"B16+B21","v":0}]
[]
[null,null,"Important:"]
["Liability Net Present Value (calculated after Macros below run)",{"$f":"SUM(G:G)","v":0},"Do not insert/delete/move"]
[null,null,"NPV must be cell B25"]
[null,null,"(macros depend on it)"]
["Asset Adjustments (from Asset Adj tab):","Asset Adj Amount"]
["Total Asset Adjustments during Current Year",{"$f":"'Asset Adj'!K124","v":0}]
["EXPECTED Future Asset Adjustments (if there is an amt here, s/b DIP)",{"$f":"'Asset Adj'!K125","v":0},"DIP or Final?"]
["Total Asset Adjustment",{"$f":"SUM(B29:B30)","v":0},{"$f":"'Asset Adj'!K127","v":"FINAL Adj Amount"}]
[]
[]
["Software Subscription Asset Cost (calculated after Macros below run)",{"$f":"IF(C31=\"FINAL Adj Amount\",B25+B31,\"Not yet determined\")","v":0}]
[]
["The Agency is not required to calculate the Present Value and/or enable Macros,"]
["but Steps 1 & 2 of the instructions below are REQUIRED to be completed."]
["After completing Steps 1 & 2, if desired to calculate the Present Value, complete Steps 3 - 8:"]
[]
["Note 1:  First make sure your Excel settings are correct -","See How to Enable Macros tab"]
["Note 2:  Please do not Insert, Delete, or Move any cells, columns or rows as this could cause the Macros to fail."]
["Note 3:  The Teal Cells in columns B & C are for manual input, and the Present Value Table will need to be adjusted in column F."]
["The Orange cells in columns B & C will automatically fill.  The Present Value and Amortization Tables will be generated with the"]
["Macro buttons.  Please do not make changes to the orange cells or anywhere within the Tables (except column F)."]
[]
["Step 1 - Fill out the \"Fixed Subscription Payment Schedule\" above (starting on row 10)."]
["a - To calculate the Fixed Subscription Payment:"]
["i -  Start with the fixed subscription periodic payments stated in the contract."]
["ii - In addition, add \"Fixed In-Substance Fees\" to the above amount.  \"Fixed In-Substance Fees\" are the Minimum Usage Costs of a variable"]
["usage fee.  For Example, if a subscription includes up to 5 gigs of data used for a set fee, but charges extra for every additional gig, the"]
["minimum fee for the first 5 gigs is the \"Fixed In-Substance Fee\", and the per gig fees above that minimum would be the variable fees."]
["iii - For payments that depend on an index or a rate (such as the Consumer Price Index or a market interest rate), the payment should be"]
["initially measured using the index or rate published as of the start of the subscription term."]
["iv - EXCLUDE any variable usage fees and/or support/maintenance service fees included in the payment (see #24 & 25 in Data Input tab)"]
["b - If payments escalate over time, list the beginning payment amount (col B) & # of payments to be paid at that amount (col C), then"]
["move to line #2 and list the next payment amount & # of payments at that amount, etc."]
["c - If an extension is deemed Reasonably Certain to be exercised, but the amount is listed as \"negotiable\", then use the fixed"]
["payment amount just prior to the date of extension for those unknown amounts."]
["d - If there is an Abated or Free Rent period (skipped payment) indicated in the SBITA contract,",null,"Desc of Lease Incentives"]
["indicate that with a $0 payment amount (col B) & the number of payments to be skipped (col C).",null,{"$f":"'Data Input'!K139","v":0}]
["Make sure to put these skipped payments in the correct order chronologically.  For example, if there"]
["is a skipped payment for payment 13, list the first 12 payments on the first line, then list line #2 as"]
["$0 (col B) and 1 (col C), then line #3 as the continuing payments after the skipped payment."]
["e - If a Bonus payment from the SBITA Vendor is included in the contract, subtract that amount from the payment closest to the proper"]
["chronological period (as described in d above).  This may cause that payment amount to be negative."]
["f - If payments are Less Often than Annually,indicate this in the Payment Schedule above by listing the 1st payment on the 1st row  & a 1 in"]
["col C, then the 2nd row should show how many years to be skipped in col C ($0 in col B), then the 3rd row will show the 2nd payment."]
["Repeat until all payments & all years are represented in the Payment Schdl (total in col C should tie to total yrs of subscription term in"]
["cell B4)."]
["g - Use the Teal box below to add any extra details, how payments change over time (For example, (a) Payment increases 5% every 10 yrs;"]
["(b) Payment recalculated every 5 yrs based on CPI, etc.), or describe payment frequency if Less Often than Annually."]
[]
[]
[]
["h - If there are not enough lines in the Payment Schedule above, use the table below to input the additional payment amounts, and the"]
["totals from the additional table will automatically be added to the Payment Schedule above.  Contact the GAAP Group if you need more"]
["than 25 lines."]
["i - Verify that the total # of payments in cell B4 is the same as the sum of col C (cell C16)."]
[]
["Additional Subscription Payment Lines (if needed)","Amount","# of Payments"]
["Payment Amount #5 & # of Payments at this amount",0,0]
["Payment Amount #6 & # of Payments at this amount",0,0]
["Payment Amount #7 & # of Payments at this amount",0,0]
["Payment Amount #8 & # of Payments at this amount",0,0]
["Payment Amount #9 & # of Payments at this amount",0,0]
["Payment Amount #10 & # of Payments at this amount",0,0]
["Payment Amount #11 & # of Payments at this amount",0,0]
["Payment Amount #12 & # of Payments at this amount",0,0]
["Payment Amount #13 & # of Payments at this amount",0,0]
["Payment Amount #14 & # of Payments at this amount",0,0]
["Payment Amount #15 & # of Payments at this amount",0,0]
["Payment Amount #16 & # of Payments at this amount",0,0]
["Payment Amount #17 & # of Payments at this amount",0,0]
["Payment Amount #18 & # of Payments at this amount",0,0]
["Payment Amount #19 & # of Payments at this amount",0,0]
["Payment Amount #20 & # of Payments at this amount",0,0]
["Payment Amount #21 & # of Payments at this amount",0,0]
["Payment Amount #22 & # of Payments at this amount",0,0]
["Payment Amount #23 & # of Payments at this amount",0,0]
["Payment Amount #24 & # of Payments at this amount",0,0]
["Payment Amount #25 & # of Payments at this amount",0,0]
["Total Add'l Subscription Payments (will automatically be added to the Schdl above)",{"$f":"(B81*C81)+(B82*C82)+(B83*C83)+(B84*C84)+(B85*C85)+(B86*C86)+(B87*C87)+(B88*C88)+(B89*C89)+(B90*C90)+(B91*C91)+(B92*C92)+(B93*C93)+(B94*C94)+(B95*C95)+(B96*C96)+(B97*C97)+(B98*C98)+(B99*C99)+(B100*C100)+(B101*C101)","v":0},{"$f":"SUM(C81:C101)","v":0}]
[]
[]
["Step 2 - Fill out the \"Other Payment Considerations\" section (starting on row 18) ONLY if instructed to do so on the Data Input tab"]
["The Termination Penalty line should only have an amount listed if a termination clause is deemed Reasonably Certain to be exercised"]
["based on decisions by the Agency (response from the Data Input tab is shown in col C) AND this termination will cause a Penalty to be due."]
[]
["Steps 3 - 8 are OPTIONAL (calculation of Present Value and Amortization Tables)"]
["Step 3 - Click the Macro button below to Generate the first 2 columns of the Present Value (PV) Table."]
[]
[]
["Step 4 - Using the Payment Schedule filled out in Steps 1 & 2, fill in the Payment Amounts into col F of the PV Table."]
["a - If there are 12 payments for the 1st payment amount, and 6 payments for the 2nd payment amount, list the 1st amount in the"]
["first 12 rows of the Table, then the 2nd amount for the next 6 rows, and do the same for the remaining payment amounts  listed"]
["in the Payment Schedule until all the payments are filled in on the Table."]
["b - Make sure not to miss any Skipped Payment periods.  If the Payment Schedule indicates the 13th payment is $0, then row 13 of the"]
["Table should be $0, same as the Payment Schedule."]
["c - If there are any amounts listed for \"Other Payment Considerations\", add it to the final payment.  For example, if the final"]
["payment is $20,000, and there is a Termination Penalty listed for $50,000, then the final payment in the Table should be $70,000."]
["d -  Check to make sure that the sum of all the payments entered into col F of the Table is the same as the Total Undiscounted Cash"]
["Flows in cell B22."]
[]
["Step 5 - Click the Macro button below to Calculate Net Present Value and Generate the PV and Amortization Tables."]
[]
[]
[]
["Step 6 - Check data for accuracy:"]
["a - Check the date of the final payment in the Amortization Table and compare to Subscription End Date in cell B8.  Make sure the final"]
["payment date is reasonable in comparison to the subscription End Date (within same month if payments are Monthly, within the final"]
["quarter if Quarterly, etc)."]
["b - If payments change (there are amounts in Payment Amount #2 + rows), then check the dates the amounts change in the"]
["Amort Table (col K & M) to make sure the payments change on the correct dates as per the SBITA Contract."]
["c - If 6a and 6b are BOTH correct, skip to Step 8 (Do NOT click the Start Over Macro Button)."]
["d - If 6a or 6b does not appear to be correct:"]
["i - Double-check the Instructions above (Steps 1 - 6), including the check for # of payments in 1i & check for Table payments in 4d."]
["ii - Double-check cells B2-B8 by reviewing the SBITA Contract.  These cells automatically filled based on answers in the Data Input"]
["tab.  Make any necessary corrections in the Data Input tab (NOT in cells B2-B8) - the corresponding question #s are referenced above."]
["iii - Double-Check the Payment Schedule and Other Payment Considerations sections.  Compare back to the SBITA contract to"]
["verify, and correct as necessary."]
["e - Once corrections have been made, click the Macro button below to Delete the PV & Amortization Tables."]
[]
[]
[]
["Step 7 - Repeat Steps 3-6 as needed until all checks (1i, 4d, 6a, 6b, and 6di-6diii) are correct."]
[]
["Step 8 - See Net Present Value calculated in cell B25 for the SBITA Liability and the SBITA Asset Cost in cell B34."]
["Also, see Present Value Table in columns E-G,"]
["and Amortization Table in columns J-P."]
["Note:  If Implementation Period is not yet complete, then only a Development in Process Asset will be recognized at this point (cell B34 will"]
["return a value of \"Not yet determined\" if implementation is still in process & will also be noted as \"Development in Process\" in cell C31)."]
["The SBITA Liability & SBITA Asset will not be recognized until the SBITA is Put Into Service/Go-Live Date.  If this is the case, please continue"]
["to track all Implementation Costs.  This info will be requested in the following year's Closing Package Activity Form."]
[]
["Please DO NOT add SBITA implementation costs into the AZ360 Fixed Assets System.  This will be done manually as the SBITA Asset"]
["includes not only the implementation costs, but also the Present Value of the Subscription Fixed Payments (Liability)."]

{"sheet":"SBITA 10 - PV Calc","index":15,"n_rows":156,"n_cols":3,"rows_kept":156,"cut":false,"hidden":false,"merged":[[59,2,62,2],[71,0,73,2]]}
["Present Value Calculations tab - SBITA # 10 (column L)","Contract #",{"$f":"'Data Input'!L35","v":0}]
["Periodic Interest Rate (Section VI, #28-29 from Data Input tab)",{"$f":"'Data Input'!L156","v":0}]
["Cash Flows at Beginning or End (Section IV, #21)",{"$f":"'Data Input'!L108","v":0},"Important:"]
["Number of payments (Section IV, #20)",{"$f":"'Data Input'!L105","v":0},"Do not insert/delete/move"]
["Frequency of payments (Section IV, #19)",{"$f":"'Data Input'!L101","v":0},"cells B2:B8"]
["Date of first payment (Section IV, #22)",{"$f":"'Data Input'!L112","v":"00:00:00"},"(macros depend on them)"]
["Date Put Into Service/Go-Live Date (#14 from Data Input tab)",{"$f":"'Data Input'!L87","v":"00:00:00"}]
["Subscription End Date including Extensions (Section IV, #17)",{"$f":"'Data Input'!L96","v":"1900-01-30"}]
[]
["Fixed Subscription Payment Schedule (Section V, #23 & see instructions below):","Amount","# of Payments"]
["Payment Amount #1 & # of Payments at this amount",0,0]
["Payment Amount #2 & # of Payments at this amount",0,0]
["Payment Amount #3 & # of Payments at this amount",0,0]
["Payment Amount #4 & # of Payments at this amount",0,0]
["Totals from add'l table below (if needed)",{"$f":"B102","v":0},{"$f":"C102","v":0}]
["Total Subscription Payments (sum of all payment amounts * # of payments)",{"$f":"(B11*C11)+(B12*C12)+(B13*C13)+(B14*C14)+(B15)","v":0},{"$f":"SUM(C11:C15)","v":0}]
[]
["Other Payment Considerations:",null,"Answer per Data Input Tab"]
["Termination Penalty (Section V, #26)",0,{"$f":"'Data Input'!L133","v":0}]
[]
["Total Other Payment Considerations",{"$f":"SUM(B19:B20)","v":0}]
["Total Undiscounted Cash Flows (Total Payments + Other Considerations)",{"$f":"B16+B21","v":0}]
[]
[null,null,"Important:"]
["Liability Net Present Value (calculated after Macros below run)",{"$f":"SUM(G:G)","v":0},"Do not insert/delete/move"]
[null,null,"NPV must be cell B25"]
[null,null,"(macros depend on it)"]
["Asset Adjustments (from Asset Adj tab):","Asset Adj Amount"]
["Total Asset Adjustments during Current Year",{"$f":"'Asset Adj'!L124","v":0}]
["EXPECTED Future Asset Adjustments (if there is an amt here, s/b DIP)",{"$f":"'Asset Adj'!L125","v":0},"DIP or Final?"]
["Total Asset Adjustment",{"$f":"SUM(B29:B30)","v":0},{"$f":"'Asset Adj'!L127","v":"FINAL Adj Amount"}]
[]
[]
["Software Subscription Asset Cost (calculated after Macros below run)",{"$f":"IF(C31=\"FINAL Adj Amount\",B25+B31,\"Not yet determined\")","v":0}]
[]
["The Agency is not required to calculate the Present Value and/or enable Macros,"]
["but Steps 1 & 2 of the instructions below are REQUIRED to be completed."]
["After completing Steps 1 & 2, if desired to calculate the Present Value, complete Steps 3 - 8:"]
[]
["Note 1:  First make sure your Excel settings are correct -","See How to Enable Macros tab"]
["Note 2:  Please do not Insert, Delete, or Move any cells, columns or rows as this could cause the Macros to fail."]
["Note 3:  The Teal Cells in columns B & C are for manual input, and the Present Value Table will need to be adjusted in column F."]
["The Orange cells in columns B & C will automatically fill.  The Present Value and Amortization Tables will be generated with the"]
["Macro buttons.  Please do not make changes to the orange cells or anywhere within the Tables (except column F)."]
[]
["Step 1 - Fill out the \"Fixed Subscription Payment Schedule\" above (starting on row 10)."]
["a - To calculate the Fixed Subscription Payment:"]
["i -  Start with the fixed subscription periodic payments stated in the contract."]
["ii - In addition, add \"Fixed In-Substance Fees\" to the above amount.  \"Fixed In-Substance Fees\" are the Minimum Usage Costs of a variable"]
["usage fee.  For Example, if a subscription includes up to 5 gigs of data used for a set fee, but charges extra for every additional gig, the"]
["minimum fee for the first 5 gigs is the \"Fixed In-Substance Fee\", and the per gig fees above that minimum would be the variable fees."]
["iii - For payments that depend on an index or a rate (such as the Consumer Price Index or a market interest rate), the payment should be"]
["initially measured using the index or rate published as of the start of the subscription term."]
["iv - EXCLUDE any variable usage fees and/or support/maintenance service fees included in the payment (see #24 & 25 in Data Input tab)"]
["b - If payments escalate over time, list the beginning payment amount (col B) & # of payments to be paid at that amount (col C), then"]
["move to line #2 and list the next payment amount & # of payments at that amount, etc."]
["c - If an extension is deemed Reasonably Certain to be exercised, but the amount is listed as \"negotiable\", then use the fixed"]
["payment amount just prior to the date of extension for those unknown amounts."]
["d - If there is an Abated or Free Rent period (skipped payment) indicated in the SBITA contract,",null,"Desc of Lease Incentives"]
["indicate that with a $0 payment amount (col B) & the number of payments to be skipped (col C).",null,{"$f":"'Data Input'!L139","v":0}]
["Make sure to put these skipped payments in the correct order chronologically.  For example, if there"]
["is a skipped payment for payment 13, list the first 12 payments on the first line, then list line #2 as"]
["$0 (col B) and 1 (col C), then line #3 as the continuing payments after the skipped payment."]
["e - If a Bonus payment from the SBITA Vendor is included in the contract, subtract that amount from the payment closest to the proper"]
["chronological period (as described in d above).  This may cause that payment amount to be negative."]
["f - If payments are Less Often than Annually,indicate this in the Payment Schedule above by listing the 1st payment on the 1st row  & a 1 in"]
["col C, then the 2nd row should show how many years to be skipped in col C ($0 in col B), then the 3rd row will show the 2nd payment."]
["Repeat until all payments & all years are represented in the Payment Schdl (total in col C should tie to total yrs of subscription term in"]
["cell B4)."]
["g - Use the Teal box below to add any extra details, how payments change over time (For example, (a) Payment increases 5% every 10 yrs;"]
["(b) Payment recalculated every 5 yrs based on CPI, etc.), or describe payment frequency if Less Often than Annually."]
[]
[]
[]
["h - If there are not enough lines in the Payment Schedule above, use the table below to input the additional payment amounts, and the"]
["totals from the additional table will automatically be added to the Payment Schedule above.  Contact the GAAP Group if you need more"]
["than 25 lines."]
["i - Verify that the total # of payments in cell B4 is the same as the sum of col C (cell C16)."]
[]
["Additional Subscription Payment Lines (if needed)","Amount","# of Payments"]
["Payment Amount #5 & # of Payments at this amount",0,0]
["Payment Amount #6 & # of Payments at this amount",0,0]
["Payment Amount #7 & # of Payments at this amount",0,0]
["Payment Amount #8 & # of Payments at this amount",0,0]
["Payment Amount #9 & # of Payments at this amount",0,0]
["Payment Amount #10 & # of Payments at this amount",0,0]
["Payment Amount #11 & # of Payments at this amount",0,0]
["Payment Amount #12 & # of Payments at this amount",0,0]
["Payment Amount #13 & # of Payments at this amount",0,0]
["Payment Amount #14 & # of Payments at this amount",0,0]
["Payment Amount #15 & # of Payments at this amount",0,0]
["Payment Amount #16 & # of Payments at this amount",0,0]
["Payment Amount #17 & # of Payments at this amount",0,0]
["Payment Amount #18 & # of Payments at this amount",0,0]
["Payment Amount #19 & # of Payments at this amount",0,0]
["Payment Amount #20 & # of Payments at this amount",0,0]
["Payment Amount #21 & # of Payments at this amount",0,0]
["Payment Amount #22 & # of Payments at this amount",0,0]
["Payment Amount #23 & # of Payments at this amount",0,0]
["Payment Amount #24 & # of Payments at this amount",0,0]
["Payment Amount #25 & # of Payments at this amount",0,0]
["Total Add'l Subscription Payments (will automatically be added to the Schdl above)",{"$f":"(B81*C81)+(B82*C82)+(B83*C83)+(B84*C84)+(B85*C85)+(B86*C86)+(B87*C87)+(B88*C88)+(B89*C89)+(B90*C90)+(B91*C91)+(B92*C92)+(B93*C93)+(B94*C94)+(B95*C95)+(B96*C96)+(B97*C97)+(B98*C98)+(B99*C99)+(B100*C100)+(B101*C101)","v":0},{"$f":"SUM(C81:C101)","v":0}]
[]
[]
["Step 2 - Fill out the \"Other Payment Considerations\" section (starting on row 18) ONLY if instructed to do so on the Data Input tab"]
["The Termination Penalty line should only have an amount listed if a termination clause is deemed Reasonably Certain to be exercised"]
["based on decisions by the Agency (response from the Data Input tab is shown in col C) AND this termination will cause a Penalty to be due."]
[]
["Steps 3 - 8 are OPTIONAL (calculation of Present Value and Amortization Tables)"]
["Step 3 - Click the Macro button below to Generate the first 2 columns of the Present Value (PV) Table."]
[]
[]
["Step 4 - Using the Payment Schedule filled out in Steps 1 & 2, fill in the Payment Amounts into col F of the PV Table."]
["a - If there are 12 payments for the 1st payment amount, and 6 payments for the 2nd payment amount, list the 1st amount in the"]
["first 12 rows of the Table, then the 2nd amount for the next 6 rows, and do the same for the remaining payment amounts  listed"]
["in the Payment Schedule until all the payments are filled in on the Table."]
["b - Make sure not to miss any Skipped Payment periods.  If the Payment Schedule indicates the 13th payment is $0, then row 13 of the"]
["Table should be $0, same as the Payment Schedule."]
["c - If there are any amounts listed for \"Other Payment Considerations\", add it to the final payment.  For example, if the final"]
["payment is $20,000, and there is a Termination Penalty listed for $50,000, then the final payment in the Table should be $70,000."]
["d -  Check to make sure that the sum of all the payments entered into col F of the Table is the same as the Total Undiscounted Cash"]
["Flows in cell B22."]
[]
["Step 5 - Click the Macro button below to Calculate Net Present Value and Generate the PV and Amortization Tables."]
[]
[]
[]
["Step 6 - Check data for accuracy:"]
["a - Check the date of the final payment in the Amortization Table and compare to Subscription End Date in cell B8.  Make sure the final"]
["payment date is reasonable in comparison to the subscription End Date (within same month if payments are Monthly, within the final"]
["quarter if Quarterly, etc)."]
["b - If payments change (there are amounts in Payment Amount #2 + rows), then check the dates the amounts change in the"]
["Amort Table (col K & M) to make sure the payments change on the correct dates as per the SBITA Contract."]
["c - If 6a and 6b are BOTH correct, skip to Step 8 (Do NOT click the Start Over Macro Button)."]
["d - If 6a or 6b does not appear to be correct:"]
["i - Double-check the Instructions above (Steps 1 - 6), including the check for # of payments in 1i & check for Table payments in 4d."]
["ii - Double-check cells B2-B8 by reviewing the SBITA Contract.  These cells automatically filled based on answers in the Data Input"]
["tab.  Make any necessary corrections in the Data Input tab (NOT in cells B2-B8) - the corresponding question #s are referenced above."]
["iii - Double-Check the Payment Schedule and Other Payment Considerations sections.  Compare back to the SBITA contract to"]
["verify, and correct as necessary."]
["e - Once corrections have been made, click the Macro button below to Delete the PV & Amortization Tables."]
[]
[]
[]
["Step 7 - Repeat Steps 3-6 as needed until all checks (1i, 4d, 6a, 6b, and 6di-6diii) are correct."]
[]
["Step 8 - See Net Present Value calculated in cell B25 for the SBITA Liability and the SBITA Asset Cost in cell B34."]
["Also, see Present Value Table in columns E-G,"]
["and Amortization Table in columns J-P."]
["Note:  If Implementation Period is not yet complete, then only a Development in Process Asset will be recognized at this point (cell B34 will"]
["return a value of \"Not yet determined\" if implementation is still in process & will also be noted as \"Development in Process\" in cell C31)."]
["The SBITA Liability & SBITA Asset will not be recognized until the SBITA is Put Into Service/Go-Live Date.  If this is the case, please continue"]
["to track all Implementation Costs.  This info will be requested in the following year's Closing Package Activity Form."]
[]
["Please DO NOT add SBITA implementation costs into the AZ360 Fixed Assets System.  This will be done manually as the SBITA Asset"]
["includes not only the implementation costs, but also the Present Value of the Subscription Fixed Payments (Liability)."]

{"sheet":"Drop Down List","index":16,"n_rows":77,"n_cols":2,"rows_kept":77,"cut":false,"hidden":false,"merged":[]}
[]
["Asset Type","Useful Life in Months"]
["Software <$10M",60]
["Software >$10M",120]
["Other IT Arrangement","Use SBITA term"]
[]
[]
["Payment System"]
["AFIS"]
["APP"]
[]
["Yes / No / N/A"]
["Yes"]
["No"]
["N/A"]
[]
[]
["Payment frequency"]
["Monthly"]
["Quarterly"]
["Semi-annually"]
["Annually"]
[]
["Payment B or E"]
["Begin"]
["End"]
[]
["Payments Equal / Residual Value?"]
["Yes"]
["No - Fill out on PV Calc Tab"]
["N/A"]
[]
["Termination Penalty?"]
["Yes - Fill out on PV Calc Tab"]
["No"]
["N/A"]
[]
["One source / divided"]
["One Source"]
["Divided - Fill out Subscrptn Split Tab"]
[]
["Type of Division"]
["Specific $ amount"]
["Percentage (%)"]
[]
["Planned Cancellation"]
["Yes - use Planned End Date for Lease End Date"]
["No"]
[]
["Asset Capitalized"]
["Yes - in a prior year"]
["Yes - during current FY"]
["No"]
[]
["Existing or New"]
["New (FY2024)"]
["Existing w/Significant Modification"]
[]
["Asset Cost Adj"]
["Yes - Fill out on Asset Adj Tab"]
["No"]
[]
["Asset Adj - Vendor or 3rd party"]
["Yes - to SBITA Vendor"]
["Yes - to 3rd party consultant"]
["Yes - to SBITA Vendor & 3rd party consultant"]
["No"]
[]
["Staff Time"]
["Yes but was not tracked"]
["Yes & was tracked"]
["No"]
[]
["Estimated implementation staff costs"]
["Yes - estimate included below"]
["No"]
["N/A"]